Cogmind - Beta 17 @@@ ROGUE MODE // 2026.06.25 @ 06:49:07 Player: shapeshifter Result: Escaped! Performance ------------- Evolutions (9) 4500 Regions Visited (26) 5200 Robots Destroyed (447) 2235 Value Destroyed (27615) 27615 Prototype IDs (148) 2960 Alien Tech Used (8) 1600 Bonus (48999) 48999 TOTAL SCORE: 93109 Bonus ------- Triggered High Security 1500 High Alert Combat Kills 15026 Follower Combat Kills 2688 Prayed to X0-1V1 5000 Major X0-1V1 Interference 18450 Met Data Miner 300 Met Zhirov 300 Met Warlord at Base 500 MAIN.C Attacked Warlord 500 Warlord Defense Kills 1598 Scanned by Researcher 500 Win 3000 Friendly Fire -363 Cogmind --------- Core Integrity 1601/1610 Matter 112/300 Energy 353/360 System Corruption 0% Temperature Cool (14) Movement Hovering (46) Location To Epsilon Eridani Parts ------- > --- POWER (4) -------- Light Antimatter Reactor Micro Antimatter Reactor Micro Antimatter Reactor Light Quantum Reactor > --- PROPULSION (7) --- Improved Antigrav System Improved Antigrav System Improved Antigrav System Combat Antigrav System Combat Antigrav System Combat Antigrav System Experimental Gyrokinetic Inverter > --- UTILITY (11) ----- Advanced Heat Sink Advanced Heat Sink Advanced Heat Sink Gravity Neutralizer Advanced Weapon Cycler Concept Cloak Mesh Concept RG22 Armor Improved Force Field Advanced Corruption Screen Concept Impact Drone Bay (3/6) X0-1V1's Piety Tracker > --- WEAPON (4) ------- Improved Potential Cannon Advanced Remote Datajack Molecular Scythe > --- INVENTORY (5) ---- Advanced Energy Well (500) Advanced Energy Well (500) Concept NT7 Matterbank (750) Medium Regenerative Plating Concept Impact Drone Bay (0/6) Peak State ------------ > --- POWER ------------ Light Antimatter Reactor Multi-Quantum Reactor > --- PROPULSION ------- Biometal-HC Exoskeleton > --- UTILITY ---------- Armored Scrap Engine Experimental Cooling System Concept Antigrav Storage Unit Concept Networked Targeting System Experimental Armor Integrity Analyzer Concept Cloak Mesh Concept RG22 Armor Crosscalibrator > --- WEAPON ----------- Concept Plasma Driver Concept Plasma Driver Concept Plasma Driver Concept Miniperforator Kinetic Driver Construct/C > --- INVENTORY -------- Experimental Coolant Injector Concept Thermoelectric Network Concept Thermoelectric Network Concept Chromion Battery Concept NT7 Matterbank Concept NT7 Matterbank Concept Dimensional Manipulator Experimental Kinecellerator Mini Quantum Capacitor Concept Cloak Mesh Experimental EM Disruption Field Concept Antimissile System Concept Impact Drone Bay Concept Impact Drone Bay Transdimensional Reconstructor High-powered Transdimensional Reconstructor Subatomic Replicator Terrabomb Cooled Directed Potential Cannon Core Cannon Large Botcube [Rating: 253] Favorites ----------- Power Constructs Engine Subdweller Power Source Power Core Light Neutrino Core Reactor Constructs Propulsion Constructs Treads Light Treads Leg Constructs Wheel Subdweller Monowheel Hover Unit Improved Antigrav System Flight Unit Flight Unit Utility Armored Scrap Engine Device Armored Scrap Engine Storage Large Storage Unit Processor Experimental Armor Integrity Analyzer Hackware System Mapper Protection Concept RG22 Armor Weapon Constructs Energy Gun Pulse Rifle Energy Cannon Constructs Ballistic Gun Assault Rifle Ballistic Cannon Constructs Launcher Ragnarok Missile Launcher Special Weapon Advanced Remote Datajack Impact Weapon Mace Slashing Weapon Heavy Scimitar of Distortion Piercing Weapon Vortex Lance Special Melee Weapon Datajack Build | -11 -10 -10 -8 -8 -8 -6 -6 -6 -6 -5 -5 -5 -5 -5 -4 -4 -4 -4 -4 -3 -3 -3 -3 -2 -2 -1 ------- Run | Yrd Mat Sub Mat Sto Rec Fac Low Low Dat Pro Fac Upp Upp Zhi Pro Fac Upp Upp War Pro Res Qua Frg Res Tes Acc Slots Evolved 18 | . . . 4 . . 4 . . . . 2 . . . . 2 . . . . 2 . . 2 . 2 Power 1 | . . . . . . . . . . . . . . . . 1 . . . . . . . . . . Propulsion 6 | . . . 1 . . 1 . . . . 1 . . . . . . . . . . . . 2 . 1 Utility 8 | . . . 2 . . 1 . . . . 1 . . . . 1 . . . . 2 . . . . 1 Weapon 3 | . . . 1 . . 2 . . . . . . . . . . . . . . . . . . . . Parts Attached 241 | 7 1 22 1 6 7 1 1 1 . . 6 . 2 2 2 4 1 3 2 3 7 17 91 17 28 9 Power 13 | 1 . 3 . . . . . . . . . . . . . . . . . . . . 3 . 5 1 Engine 4 | 1 . 3 . . . . . . . . . . . . . . . . . . . . . . . . Core 1 | . . . . . . . . . . . . . . . . . . . . . . . . . 1 . Reactor 8 | . . . . . . . . . . . . . . . . . . . . . . . 3 . 4 1 Propulsion 25 | 2 . 7 . 2 . . . . . . 1 . . . . . . . . . . . 2 1 6 4 Treads 3 | 2 . 1 . . . . . . . . . . . . . . . . . . . . . . . . Leg 2 | . . . . . . . . . . . . . . . . . . . . . . . 2 . . . Wheel 4 | . . 4 . . . . . . . . . . . . . . . . . . . . . . . . Hover 14 | . . 2 . . . . . . . . 1 . . . . . . . . . . . . 1 6 4 Flight 2 | . . . . 2 . . . . . . . . . . . . . . . . . . . . . . Utility 139 | 2 1 4 1 2 5 1 1 1 . . 5 . 2 2 2 4 1 3 2 2 7 14 56 6 12 3 Device 91 | 1 . 2 . 1 3 1 . 1 . . 4 . 2 1 2 2 1 3 2 2 4 10 35 5 6 3 Storage 15 | 1 1 . 1 . 1 . 1 . . . . . . 1 . . . . . . . 1 4 1 3 . Processor 8 | . . . . 1 . . . . . . . . . . . . . . . . 1 1 3 . 2 . Hackware 6 | . . . . . . . . . . . 1 . . . . 2 . . . . 2 . 1 . . . Protection 19 | . . 2 . . 1 . . . . . . . . . . . . . . . . 2 13 . 1 . Artifact . | . . . . . . . . . . . . . . . . . . . . . . . . . . . Weapon 64 | 2 . 8 . 2 2 . . . . . . . . . . . . . . 1 . 3 30 10 5 1 Energy Gun 6 | . . 2 . . . . . . . . . . . . . . . . . . . . 3 . 1 . Energy Cannon 12 | . . 1 . . . . . . . . . . . . . . . . . . . 1 6 2 2 . Ballistic Gun 10 | 2 . 3 . 1 . . . . . . . . . . . . . . . . . . 4 . . . Ballistic Cannon 5 | . . 1 . . . . . . . . . . . . . . . . . . . . 3 . 1 . Launcher 10 | . . . . . . . . . . . . . . . . . . . . . . . 5 5 . . Special Weapon 6 | . . 1 . . . . . . . . . . . . . . . . . 1 . 1 . 2 1 . Impact Weapon 2 | . . . . 1 1 . . . . . . . . . . . . . . . . . . . . . Slashing Weapon 7 | . . . . . . . . . . . . . . . . . . . . . . . 6 . . 1 Piercing Weapon 4 | . . . . . . . . . . . . . . . . . . . . . . 1 2 1 . . Special Melee Weapon 2 | . . . . . 1 . . . . . . . . . . . . . . . . . 1 . . . Unidentified Prototypes 64 | . . 1 . 1 1 . . . . . . . . 2 . . 1 . 1 . 1 11 32 4 7 2 Parts Lost 83 | . . 12 1 3 . . 1 . . . 1 . . 3 1 . . . . . . 3 37 21 . . Power 11 | . . 2 . . . . . . . . . . . . 1 . . . . . . . 4 4 . . Propulsion 14 | . . 3 1 2 . . . . . . . . . . . . . . . . . . 4 4 . . Utility 32 | . . 2 . 1 . . . . . . . . . 1 . . . . . . . 2 20 6 . . Weapon 26 | . . 5 . . . . 1 . . . 1 . . 2 . . . . . . . 1 9 7 . . Highest Loss Streak 13 | . . 4 1 3 . . 1 . . . 1 . . 3 1 . . . . . . 2 13 7 . . To Critical Strikes 1 | . . . . . . . . . . . . . . . . . . . . . . . 1 . . . Average Backups 12 | 1 4 7 7 5 4 5 10 14 14 13 14 12 11 13 14 14 15 15 14 14 14 14 19 12 4 4 Power . | . 1 . . . . . . . . . . . . . . . . . . . . . . . . . Propulsion . | . . . . . . . . . . . . . . . . . . . . . . . . . . . Utility 8 | . 1 2 2 1 4 5 10 14 14 13 13 11 11 12 13 13 14 13 12 10 9 6 10 8 3 3 Weapon 1 | . 1 3 4 3 . . . . . . . . . . . . . . 1 2 3 2 3 1 . . Tool/Special . | . . . . . . . . . . . . . . . . . . . . . . . . . . . Unused Backups 78 | . . 3 . 5 4 . . 3 . . 3 6 3 . 1 3 . 3 9 1 4 4 17 7 . 2 Power . | . . . . . . . . . . . . . . . . . . . . . . . . . . . Propulsion 2 | . . . . . . . . . . . 1 . . . . . . . . . . . 1 . . . Utility 52 | . . . . 3 1 . . 3 . . 2 5 3 . 1 3 . 3 7 . 1 3 9 6 . 2 Weapon 22 | . . 3 . 2 3 . . . . . . . . . . . . . 2 1 3 1 7 . . . Tool/Special 2 | . . . . . . . . . . . . 1 . . . . . . . . . . . 1 . . Average Slot Usage (%) 61 | . 100 94 47 59 53 62 61 64 66 66 62 61 63 61 52 51 54 65 60 60 62 56 51 50 55 92 Engine 2 | . 14 12 . . 6 2 1 4 . . . 1 . . . . . . . . . . . . . . Reactor 2 | . . . . . . . . . 3 . . 3 5 5 5 4 6 10 5 5 4 3 4 3 6 12 Treads 2 | . 28 5 . . 5 4 5 5 . . . 1 . . . . 1 5 4 1 . . . 2 . . Wheel 2 | . . 18 . . 1 . . . . . . . . . . . . . . . . . . . . . Hover 1 | . . 1 18 7 . . . . . . . . 1 5 5 . . . . . 1 . . 1 13 25 Device 18 | . 14 9 9 16 20 19 20 20 20 20 22 21 16 17 17 20 20 20 20 20 25 19 16 22 16 25 Storage 5 | . 14 14 9 2 5 6 6 6 6 6 5 5 5 5 5 5 5 5 5 5 4 4 5 2 1 6 Processor 1 | . . . . 7 . . . . . . . . . . . . . . . . . 3 2 3 4 3 Protection 1 | . . 4 . . . . . . . . . . . . . . . . . . . 1 3 2 4 3 Energy Gun 3 | . . 9 . . 1 4 6 11 6 6 5 8 12 9 5 9 2 5 10 3 6 . . . 2 . Energy Cannon 3 | . . 7 . . 2 6 1 . . . . 3 5 9 4 1 5 4 . 5 9 6 3 2 2 3 Ballistic Gun 4 | . 28 8 . . 3 5 6 6 . . . 1 5 5 5 3 7 10 6 8 2 4 1 1 . . Ballistic Cannon 3 | . . . . . 1 5 6 6 20 20 15 7 4 . . . 2 5 7 6 1 1 1 . . . Peak Build Rating 253 | 7 7 30 27 28 52 81 81 98 106 106 112 122 124 130 117 108 156 159 167 172 181 182 253 225 201 229 Average Rating 121 | 4 7 20 25 23 43 71 78 82 101 100 103 111 121 118 102 104 110 156 157 165 176 163 187 178 115 210 On Entrance 95 | . 7 7 25 23 6 45 71 80 98 106 97 99 122 120 108 101 93 156 159 165 161 175 173 186 18 182 Avg Prop Armor Cover (%) 10 | . . 10 . 10 . . . . . . . . . . . . . . . . . . . . . . Naked Turns . | . . . . . . . . . . . . . . . . . . . . . . . . . . . Heaviest Build 157 | 15 20 31 15 16 25 41 79 82 59 57 62 91 105 105 89 76 128 136 149 143 157 140 155 138 88 116 Greatest Support 242 | 40 40 40 16 8 40 85 161 161 126 50 69 105 105 105 105 122 234 234 242 242 119 208 208 153 86 110 Greatest Overweight (x) 8 | . . 8 1 1 2 . . . 1 1 1 1 . . . . 1 . . 1 2 2 3 2 1 1 Average Overweight (x) . | . . 2 . . . . . . . 1 . . . . . . . . . . 1 1 . . . . Largest Inventory Capacity 25 | 8 10 10 10 10 8 8 15 15 15 15 15 15 15 15 15 15 15 15 15 15 15 20 25 25 5 5 Average Capacity 15 | 7 9 10 10 6 6 8 13 15 15 15 15 15 15 15 15 15 15 15 15 15 15 16 24 18 5 5 Most Carried 25 | 5 7 10 8 10 6 6 14 15 14 14 15 15 15 15 15 15 15 15 15 15 15 20 25 25 5 5 Average Carried 13 | 1 4 7 7 5 4 5 10 14 14 13 14 14 13 13 14 14 15 14 14 14 14 15 22 15 4 4 Final Capacity 25 | 8 10 10 10 5 8 8 15 15 15 15 15 15 15 15 15 15 15 15 15 15 15 20 25 5 5 5 Final Carried 25 | 2 7 7 8 5 6 5 14 14 14 14 15 15 11 13 15 15 15 15 15 14 15 20 25 5 5 5 Scrap Engine Consumption 447 | . . . . . 53 10 5 15 . . 24 1 5 4 8 17 3 1 20 2 14 66 163 36 . . Constructs Created 20 | . . . . . 3 3 . 1 . . . 2 . . . . 3 . . . 1 1 5 1 . . Constructs Modified 308 | . . . . . 20 8 8 12 9 . 9 18 7 . 2 9 11 1 29 16 19 42 70 18 . . Class Distribution -------------------- 28% | Construct 22% | Generator-Construct 18% | Mutant 11% | Generator-Mutant 6% | Generator-Tank 4% | Generator-Gunner 3% | Commander-Construct 3% | Scavenger-Mutant Dominant Class ---------------- Mutant | -10/Materials Mutant | -10/Subcaves Mutant | -8/Materials Mutant | -8/Storage Construct | -8/Recycling Commander-Construct | -6/Factory Construct | -6/Lower Caves Construct | -6/Lower Caves Construct | -6/Data Miner Construct | -5/Proximity Caves Construct | -5/Factory Construct | -5/Upper Caves Construct | -5/Upper Caves Construct | -5/Zhirov Construct | -4/Proximity Caves Construct | -4/Factory Construct | -4/Upper Caves Generator-Construct | -4/Upper Caves Generator-Construct | -4/Warlord Generator-Construct | -3/Proximity Caves Generator-Construct | -3/Research Generator-Construct | -3/Quarantine Generator-Mutant | -3/Protoforge Generator-Mutant | -2/Research Scavenger-Mutant | -2/Testing Scavenger-Tank | -1/Access Resources | -11 -10 -10 -8 -8 -8 -6 -6 -6 -6 -5 -5 -5 -5 -5 -4 -4 -4 -4 -4 -3 -3 -3 -3 -2 -2 -1 ----------- Run | Yrd Mat Sub Mat Sto Rec Fac Low Low Dat Pro Fac Upp Upp Zhi Pro Fac Upp Upp War Pro Res Qua Frg Res Tes Acc Matter Collected 18143 | 304 222 645 . 966 388 158 171 42 . 84 218 180 353 . 450 450 88 298 669 620 477 1572 5439 3784 537 28 Remotely 917 | . . . . . . . . . . . . . . . . . . . . . . . 917 . . . Salvage Created 22603 | 143 252 663 . 140 608 292 696 188 . 152 875 248 517 49 542 794 180 450 605 607 941 2163 10142 1064 22 270 Parts 1074 | 12 7 55 . 3 32 23 31 9 . 3 44 6 24 1 24 46 9 10 30 17 46 128 467 31 . 16 Haulers Intercepted 4 | . . . . 1 . . . . . . . . . . . . . . . . . . . 3 . . Recyclers Shooed 4 | . 1 . . . . . . . . . 1 . . . . . . . . . 2 . . . . . Parts Field Recycled . | . . . . . . . . . . . . . . . . . . . . . . . . . . . Retrieved Matter . | . . . . . . . . . . . . . . . . . . . . . . . . . . . Parts Self-Destructed 140 | . . 38 . . . . 28 10 . 5 . 2 19 . 12 . 10 6 . 10 . . . . . . Prevented 28 | . . . . . . . 5 . . 2 . . 4 . 9 . . 2 . 6 . . . . . . Parts Restored 7 | . . . . . . . . . . . . . . . . . . . . . . . 7 . . . Faulty 7 | . . . . . . . . . . . . . . . . . . . . . . . 7 . . . Kills | -11 -10 -10 -8 -8 -8 -6 -6 -6 -6 -5 -5 -5 -5 -5 -4 -4 -4 -4 -4 -3 -3 -3 -3 -2 -2 -1 ------- Run | Yrd Mat Sub Mat Sto Rec Fac Low Low Dat Pro Fac Upp Upp Zhi Pro Fac Upp Upp War Pro Res Qua Frg Res Tes Acc Combat Hostiles Destroyed 391 | . 5 20 . 4 13 5 12 3 . 3 11 4 10 . 7 16 2 11 11 9 17 33 146 41 1 7 Melee 26 | . . . . 1 . . . . . . . . . . . . . . . . . 10 12 1 . 2 Guns 104 | . 5 13 . . 9 1 6 1 . . . 1 4 . 5 10 1 4 2 2 11 13 13 3 . . Cannons 144 | . . 7 . . 3 4 6 2 . 3 10 2 6 . 1 . 1 5 8 7 5 10 56 6 1 1 AOE 88 | . . . . . . . . . . . 1 1 . . . 5 . . . . . . 48 30 . 3 Classes Destroyed 34 | 3 2 3 . 2 2 2 2 . . . . . 1 . 1 . . 1 1 . 2 2 9 1 . . Worker 8 | 1 . . . . . 1 . . . . . . . . . 3 . . . . 1 . 2 . . . Builder 11 | . . . . . . 2 . . . . 3 . . . . . . . . . . . 6 . . . Tunneler 3 | 2 . . . . . 1 . . . . . . . . . . . . . . . . . . . . Hauler 4 | . . . . 1 . . . . . . . . . . . . . . . . . . . 3 . . Recycler 2 | 1 . . . . . . . . . . 1 . . . . . . . . . . . . . . . Mechanic 6 | . . . . . . . . . . . . . . . . . . . . . . . 1 5 . . Operator 3 | . . . . . . . . . . . . . . . . . . . . . 1 1 1 . . . Drone 10 | . . 1 . . . . . . . . . . . . . . . . . . . . 9 . . . Watcher 16 | . 1 . . . . . . . . . 2 . . . . 1 . . . 2 1 3 4 2 . . Swarmer 57 | . . 6 . 3 . 3 2 . . 1 2 1 4 . . 9 . 5 1 2 8 . 3 3 . 4 Saboteur 3 | . . . . . . . . . . . . . . . . . . . . . . . 3 . . . Grunt 107 | . 5 7 . . . . 3 3 . 1 3 1 3 . 5 . . 4 4 . . 12 47 8 . 1 Brawler 13 | . . . . . . . 1 . . . . . . . . . 1 . . . 1 1 8 1 . . Duelist 14 | . . . . . . . 4 . . . . . . . 1 . . . . 1 . 1 5 2 . . Protector 7 | . . . . . 1 . . . . . . . . . . . . . 1 . . . 3 2 . . Researcher 8 | . . . . . . . . . . . . . . . . . . . . . . 1 7 . . . Sentry 42 | . . . . 1 5 1 2 . . . 4 1 . . . 1 1 . . 4 3 . 13 5 . 1 Specialist 6 | . . . . . . . . . . . . . 3 . . 2 . . . . . . 1 . . . Hunter 25 | . . . . . 3 1 . . . . 2 . . . . 4 . . 1 . . . 11 3 . . Programmer 58 | . . . . . . . . . . . . . . . 1 . . 2 1 2 4 18 18 10 1 1 Heavy 1 | . . . . . . . . . . . . . . . . . . . . . 1 . . . . . Q-Series 1 | . . . . . . . . . . . . . . . . . . . . . . . 1 . . . Behemoth 3 | . . . . . . 1 . . . 1 . . . . . . . . . . . . 1 . . . Hotshot 3 | . . . . . . . . . . . . . . . . . . . . . . . 3 . . . Decapitator 7 | . . . . . . . . . . . . . . . . . . . . . . . 7 . . . Immortal 1 | . . . . . . . . . . . . . . . . . . . . . . . 1 . . . Investigator 1 | . . . . . . . . . . . . . . . . . . . . . . . . 1 . . Striker 7 | . . . . . . . . . . . . . . . . . . . 2 . . . . 5 . . Executioner 2 | . . . . . . . . . . . . . . . . . . . . . . . 1 1 . . Alpha 7 2 | . . . . . . . . . . . . . . . . . . . . . . . 2 . . . V-Series 8 | . . . . . . . . . . . . . . . . . . . . . . . 8 . . . Subdweller 10 | . . 6 . . 4 . . . . . . . . . . . . . . . . . . . . . Scrapper 1 | . . . . . . . . . . . . . . . . . . . . . . . 1 . . . Samaritan 1 | . . . . . . . . . . . . . . . . . . 1 . . . . . . . . Tinkerer 1 | . . . . . . . . . . . . . . . . . . . . . . . 1 . . . Golem 1 | . . . . . . . . . . . . . . . . . . . . . . 1 . . . . Thug 2 | . . . . . . . . . . . . . . . . . . . . . . . 2 . . . Savage 1 | . . . . . . . . . . . . 1 . . . . . . . . . . . . . . Bouncer 1 | . . . . . . . . . . . . . . . . . . . 1 . . . . . . . Troll 1 | . . . . . . . . . . . . . . . . . . . . . . . . 1 . . Best Kill Streak 28 | 2 3 4 . 4 2 3 5 3 . 1 8 3 9 1 3 8 1 8 5 3 5 5 16 28 1 6 Combat Bots Only 23 | . 3 4 . 3 2 3 5 3 . 1 6 3 9 . 3 5 1 8 5 3 5 5 15 23 1 6 Max Kills in Single Turn 6 | 1 1 1 . 1 1 2 1 1 . 1 3 1 1 1 1 6 1 2 1 1 1 1 4 6 1 3 Gunslinging 1 | . . . . . . . . . . . . . . . . . . . . . . . 1 . . . Exploded 5 | . . . . . . . . . . . 1 1 . . . 5 . . . . . . 4 4 . 3 Melee 1 | . . . . 1 . . . . . . . . . . . . . . . . . 1 1 1 . 1 Uniques/NPCs Destroyed 1 | . . . . . . . . . . . . . . 1 . . . . . . . . . . . . Perun (-5/Zhirov) Combat | -11 -10 -10 -8 -8 -8 -6 -6 -6 -6 -5 -5 -5 -5 -5 -4 -4 -4 -4 -4 -3 -3 -3 -3 -2 -2 -1 -------- Run | Yrd Mat Sub Mat Sto Rec Fac Low Low Dat Pro Fac Upp Upp Zhi Pro Fac Upp Upp War Pro Res Qua Frg Res Tes Acc Hostile Shots Fired 3772 | . 55 180 8 64 85 25 52 20 . 17 190 12 33 76 42 106 10 107 79 53 92 267 1635 452 32 80 Missed 1255 | . 20 55 2 22 22 6 16 10 . 2 68 3 12 18 18 41 2 33 32 18 37 87 531 159 11 30 Deflected 39 | . . . . . . . . . . . . . . . . . . . . . . . 39 . . . Hits 2517 | . 35 125 6 42 63 19 36 10 . 15 122 9 21 58 24 65 8 74 47 35 55 180 1104 293 21 50 Melee 180 | . . 49 . . . . 6 . . . . . . . . . . . 1 . . 3 86 35 . . Projectile 2337 | . 35 76 6 42 63 19 30 10 . 15 122 9 21 58 24 65 8 74 46 35 55 177 1018 258 21 50 AOE 12 | . . 7 . . . . . . . . . . . . . . . . 2 . . . 2 1 . . Critical Strikes 160 | . . 2 . 2 3 . 2 . . . 5 1 . 1 2 3 . 2 3 . 4 16 91 19 1 3 Actively Blocked 9 | . . . . . . . . . . . . . . . . . . . . . . . 5 4 . . Part Disruptions 6 | . . . . . . . . . . . . . . . . . . . . . . . 4 1 . 1 Damage Taken 32334 | . 448 1752 74 323 281 87 419 196 . 89 591 73 79 1019 480 107 74 349 353 488 264 2503 17036 4909 192 148 Core 2968 | . 69 272 . 132 51 12 3 39 . . 32 . 9 81 16 33 1 19 37 . 40 207 1246 659 1 9 Absorbed by Shields 8451 | . . . . . . 19 31 . . . 396 77 89 321 . 130 81 376 327 64 239 1426 3883 855 . 137 Redirected to Shielding 712 | . . . . . . . . . . . . . . . . . . . . . . 6 706 . . . Ignored by Resistances 20207 | . . . 13 130 699 299 194 . . 235 1319 45 131 . . 866 66 571 371 361 987 . 9314 3520 311 775 Regen/Repaired (Parts) 11528 | . . . . . 96 103 183 102 . 19 215 311 48 2 72 915 24 36 389 194 288 1356 5951 1156 30 38 Core Remaining (%) 78 | 100 . 55 . . 85 . . . . 93 . . . . 86 . . . . 92 . . 59 . 37 99 Volleys Fired 1164 | 11 31 116 . . 78 20 21 7 . 8 41 9 14 7 17 29 8 24 18 40 49 98 430 66 15 7 Largest 5 | 2 2 2 . . 1 4 4 3 . 4 4 5 4 5 3 3 2 5 5 5 5 5 5 3 1 1 Hottest 513 | 40 40 143 . . 36 111 111 87 . 124 124 289 199 321 202 202 104 395 426 423 347 347 513 300 200 200 Shots Fired 2274 | 22 62 199 . . 78 73 72 21 . 32 134 31 53 19 46 79 16 108 75 132 146 246 514 94 15 7 Gun 1087 | 22 62 151 . . 57 33 40 14 . 8 36 13 26 15 30 74 8 67 39 59 90 124 97 15 7 . Cannon 1059 | . . 47 . . 21 40 32 7 . 24 98 18 27 4 16 5 8 41 36 64 56 122 332 49 5 7 Launcher 114 | . . . . . . . . . . . . . . . . . . . . . . . 85 29 . . Special 14 | . . 1 . . . . . . . . . . . . . . . . . 9 . . . 1 3 . Kinetic 1171 | 22 62 127 . . 63 38 42 14 . 24 98 24 40 4 15 25 16 43 7 20 80 157 233 17 . . Thermal 667 | . . 72 . . 15 15 19 7 . . . 2 . 9 16 25 . 43 50 77 46 82 152 19 11 7 Explosive 65 | . . . . . . . . . . . . . . . . . . . . . . . 36 29 . . Electromagnetic 358 | . . . . . . 20 11 . . 8 36 5 13 6 15 29 . 22 18 26 20 7 93 28 1 . Robot Hit Streak 21 | 10 10 10 . . 18 7 14 4 . 5 12 8 7 10 7 9 6 9 8 7 13 16 21 14 2 2 Robot Miss Streak 8 | 2 2 4 . . 2 3 2 2 . 2 5 3 2 3 5 3 2 8 3 5 6 7 5 2 3 1 Penetration Max 2 | . . . . . . 1 1 1 . . 1 . . . . 1 . . . . 1 1 2 1 . . Secondary Targets 7 | . . . . . . . . . . . . . . . . 5 . . . 1 . . 1 . . . Max Gunslinging Chain 1 | . . . . . . . . . . . . . . . . 1 . . . 1 . . 1 . . . Shots Hit Robots 1423 | 11 45 81 2 7 62 22 42 12 . 18 62 15 30 11 23 46 9 59 41 70 66 153 456 66 5 9 Core Hits 796 | 5 15 33 . . 21 14 20 7 . 7 35 9 20 5 11 29 6 18 16 21 27 61 295 111 2 8 Critical Kills 27 | . . . . . . . 1 1 . . 5 2 2 . 2 2 . . 1 . . . 11 . . . Critical Parts Destroyed 32 | . 1 . . 5 1 1 . . . . 3 . 2 . . 4 . . . . . . 12 2 1 . Critical Strikes 108 | . 1 2 . 5 1 3 3 2 . 2 10 4 6 1 2 7 . . 1 2 . 4 43 7 1 1 Burn 2 | . . 1 . . . . 1 . . . . . . . . . . . . . . . . . . . Meltdown 8 | . . . . . . . . . . . . . . . . . . . 1 . . . 7 . . . Destroy 60 | . 1 1 . . . 1 1 1 . 1 8 2 5 1 2 6 . . . . . . 27 2 1 . Blast 19 | . . . . . . 2 1 1 . 1 2 2 1 . . . . . . . . . 5 4 . . Corrupt 4 | . . . . . . . . . . . . . . . . 1 . . . 2 . . . 1 . . Smash 6 | . . . . 5 1 . . . . . . . . . . . . . . . . . . . . . Sever 3 | . . . . . . . . . . . . . . . . . . . . . . . 2 . . 1 Sunder 6 | . . . . . . . . . . . . . . . . . . . . . . 4 2 . . . Melee Attacks 170 | . . . 2 20 2 . . . . . . . . . . . . . . . . 30 107 2 . 7 Impact 24 | . . . 2 20 2 . . . . . . . . . . . . . . . . . . . . . Slashing 90 | . . . . . . . . . . . . . . . . . . . . . . . 83 . . 7 Piercing 2 | . . . . . . . . . . . . . . . . . . . . . . . . 2 . . Entropic 54 | . . . . . . . . . . . . . . . . . . . . . . 30 24 . . . Sneak Attacks 8 | . . . . 1 . . . . . . . . . . . . . . . . . 2 5 . . . Combat Hostiles 4 | . . . . . . . . . . . . . . . . . . . . . . 1 3 . . . Follow-up Attacks 11 | . . . . . . . . . . . . . . . . . . . . . . . 11 . . . Damage Inflicted 84961 | 131 557 1715 71 302 1206 597 1124 297 . 510 2121 548 1086 316 726 2145 303 2492 1989 2788 3355 8417 35993 14025 586 1561 Guns 20425 | 131 557 1079 . . 839 280 545 192 . 37 347 259 573 257 518 1410 164 1655 954 1212 2237 3554 2761 820 44 . Cannons 31058 | . . 636 . . 326 317 579 105 . 473 1554 250 433 59 208 78 139 837 1035 1576 1117 3067 14845 2672 178 574 Explosions 25747 | . . . . . . . . . . . 220 39 80 . . 657 . . . . . . 13472 10415 209 655 Melee 7543 | . . . 71 302 41 . . . . . . . . . . . . . . . . 1796 4915 86 . 332 Ramming 188 | . . . . . . . . . . . . . . . . . . . . . 1 . . 32 155 . Kinetic 26272 | 131 557 991 . . 873 347 804 198 . 473 1554 431 818 76 232 555 303 898 271 442 2035 4381 9035 867 . . Thermal 20521 | . . 724 . . 292 82 184 99 . . 220 39 80 154 208 989 . 1106 1273 1782 813 2166 7409 1241 431 1229 Explosive 18910 | . . . . . . . . . . . . . . . . . . . . . . . 8496 10414 . . Electromagnetic 11527 | . . . . . . 168 136 . . 37 347 78 188 86 286 601 . 488 445 564 506 74 6138 1385 . . Impact 414 | . . . 71 302 41 . . . . . . . . . . . . . . . . . . . . . Slashing 3888 | . . . . . . . . . . . . . . . . . . . . . . . 3556 . . 332 Piercing 86 | . . . . . . . . . . . . . . . . . . . . . . . . 86 . . Entropic 3155 | . . . . . . . . . . . . . . . . . . . . . . 1796 1359 . . . Highest Corruption 29 | . 1 16 . . . . . . . . 2 6 26 29 29 . . 1 1 . 7 16 29 17 17 . Average Corruption 10 | . 1 10 . . . . . . . . 1 4 16 26 29 . . 1 1 . 3 9 15 6 17 . Corruption Purged 30 | . . . . . . . . . . . . . . . . . . . . . . . 30 . . . Corruption Blocked 1 | . . . . . . . . . . . . . . . . . . . . . . . . . . 1 Effects 295 | . 4 45 . . . . . . . . . 8 8 7 7 . . . . . 10 46 125 28 7 . Message Errors 62 | . . 13 . . . . . . . . . 4 3 1 1 . . . . . 1 6 25 8 . . Matter Fused 56 | . 1 10 . . . . . . . . . . 1 2 2 . . . . . 1 7 25 6 1 . Heat Flow Errors 34 | . . 7 . . . . . . . . . 2 . 1 . . . . . . 1 7 13 1 2 . Energy Discharges 38 | . 1 8 . . . . . . . . . 1 2 2 . . . . . . 4 2 12 4 2 . Parts Rejected 8 | . . . . . . . . . . . . . . . . . . . . . . 1 7 . . . Parts Fused 2 | . . . . . . . . . . . . . . . . . . . . . . 1 1 . . . Data Loss (minor) 33 | . 2 2 . . . . . . . . . . . . 1 . . . . . 2 9 13 4 . . Data Loss (major) 12 | . . 1 . . . . . . . . . 1 2 . . . . . . . . 2 5 . 1 . Misfires 3 | . . 1 . . . . . . . . . . . . . . . . . . . 1 . 1 . . Alerts 8 | . . 2 . . . . . . . . . . . . . . . . . . . 2 3 1 . . Misdirections 7 | . . . . . . . . . . . . . . . . . . . . . . 1 2 3 1 . Weapon Failures 32 | . . 1 . . . . . . . . . . . 1 3 . . . . . 1 7 19 . . . Overload Shots . | . . . . . . . . . . . . . . . . . . . . . . . . . . . Overflow Damage 4894 | . . 5 . 209 41 . . . . . 12 . . 29 . 137 . 32 19 205 52 316 1983 1747 99 8 Projectiles 2390 | . . 5 . . . . . . . . 12 . . 29 . . . 32 19 205 52 162 1128 746 . . Explosions 1764 | . . . . . . . . . . . . . . . . 137 . . . . . . 527 1001 99 . Melee 740 | . . . . 209 41 . . . . . . . . . . . . . . . . 154 328 . . 8 Knockbacks 74 | . . . . 3 3 . 4 1 . 1 5 . 1 1 . . . 4 2 . . 13 34 2 . . Impact 4 | . . . . 3 1 . . . . . . . . . . . . . . . . . . . . . Kinetic 61 | . . . . . 2 . 4 1 . 1 5 . 1 1 . . . 3 2 . . 9 30 2 . . Secondary 9 | . . . . . . . . . . . . . . . . . . 1 . . . 4 4 . . . Self-Inflicted Damage 1616 | . . . . . . . . . . . . 26 . . . 39 . . . . . . 632 843 76 . Shots 29 | . . . . . . . . . . . . 1 . . . 1 . . . . . . 16 11 . . Rammed 9 | . . . . . . . . . . . . . . . . . . . . . 1 . . 3 5 . Targets Rammed 10 | . . . . . . . . . . . . . . . . . . . . . 1 . . 4 5 . Kicked 1 | . . . . . . . . . . . . . . . . . . . . . . . . 1 . . Crushed . | . . . . . . . . . . . . . . . . . . . . . . . . . . . Highest Temperature 564 | . 8 226 . . 38 84 311 33 . 258 138 434 379 394 50 2 . 421 371 292 411 564 459 196 387 339 Average Temperature 115 | . 3 57 . . 11 31 166 12 . 100 40 182 170 200 19 2 . 173 155 134 125 138 114 72 137 112 Received Heat Transfer 5582 | . 246 240 27 144 135 18 84 66 . 27 182 24 17 285 169 . 20 72 46 125 8 365 2762 455 36 29 Thermoelectric Energy+ 49 | . . . . . . . . . . . . . . . . . . . . . . . . 49 . . Effects 32 | . . . . . . . 1 . . . . 2 3 2 . . . 2 1 1 2 11 3 . 4 . Shutdowns 8 | . . . . . . . . . . . . 1 . . . . . . . . . 5 1 . 1 . Energy Bleed 4 | . . . . . . . . . . . . . . . . . . . . 1 1 1 1 . . . Interference 12 | . . . . . . . 1 . . . . . 3 2 . . . 2 . . . . 1 . 3 . Matter Decay 1 | . . . . . . . . . . . . . . . . . . . 1 . . . . . . . Short Circuit 3 | . . . . . . . . . . . . 1 . . . . . . . . . 2 . . . . Damage (minor) 1 | . . . . . . . . . . . . . . . . . . . . . 1 . . . . . Damage (major) 3 | . . . . . . . . . . . . . . . . . . . . . . 3 . . . . Siege Activations . | . . . . . . . . . . . . . . . . . . . . . . . . . . . Martial Activations . | . . . . . . . . . . . . . . . . . . . . . . . . . . . Shielding Activations . | . . . . . . . . . . . . . . . . . . . . . . . . . . . Robots Disrupted 4 | . . . . . . . . . . . . . . . . . . . . . . . 2 2 . . Combat Hostiles 3 | . . . . . . . . . . . . . . . . . . . . . . . 2 1 . . Robots Corrupted 20 | . . . . 4 1 . . . . . . . . . 1 1 . 2 . . 1 . 8 2 . . Combat Hostiles 18 | . . . . 3 1 . . . . . . . . . 1 1 . 2 . . 1 . 8 1 . . Parts Fried 58 | . . . . 6 3 . . . . . . . 1 . . 4 . 1 . 3 4 . 31 5 . . Impact Corruptions 12 | . . . . 9 1 . . . . . . . . . . . . . . . . . 2 . . . Robots Melted 9 | . . . . . . . . . . . . . . . . . . . 1 . . . 7 . . 1 Combat Hostiles 9 | . . . . . . . . . . . . . . . . . . . 1 . . . 7 . . 1 Parts Melted 25 | . . 1 . . 1 . . . . . . . . . . . . 2 . . 2 1 16 . 1 1 Heat Transferred 15259 | . . 1258 . . 325 138 433 185 . . 200 . 100 166 . 350 . 1200 871 1242 924 2537 3990 346 284 710 Parts Sabotaged 7 | . . . . . . . . . . . . . . . . . . . . . . . 2 5 . . Parts Stolen 3 | . . 3 . . . . . . . . . . . . . . . . . . . . . . . . Parts Stripped . | . . . . . . . . . . . . . . . . . . . . . . . . . . . Power Chain Reactions 5 | . . . . . . . . . . . 1 1 1 . . . . . . . . . 2 . . . Alert | -11 -10 -10 -8 -8 -8 -6 -6 -6 -6 -5 -5 -5 -5 -5 -4 -4 -4 -4 -4 -3 -3 -3 -3 -2 -2 -1 ------- Run | Yrd Mat Sub Mat Sto Rec Fac Low Low Dat Pro Fac Upp Upp Zhi Pro Fac Upp Upp War Pro Res Qua Frg Res Tes Acc Maximum Alert Level 5 | . . . . . 1 1 . . . . 1 . . . . 1 . . . . 2 4 5 5 5 5 Low Security (%) 30 | 100 100 . 100 100 78 . . . . . 95 . . . . 61 . . . . 50 5 . . . . Level 1 14 | . . . . . 21 100 . . . . 4 . . . . 38 . . . . 36 25 . . . . Level 2 5 | . . . . . . . . . . . . . . . . . . . . . 13 20 3 . . . Level 3 7 | . . . . . . . . . . . . . . . . . . . . . . 40 3 . . . Level 4 5 | . . . . . . . . . . . . . . . . . . . . . . 8 13 . . . Level 5 24 | . . . . . . . . . . . . . . . . . . . . . . . 79 7 33 . High Security 13 | . . . . . . . . . . . . . . . . . . . . . . . . 92 66 99 Max Security . | . . . . . . . . . . . . . . . . . . . . . . . . . . . Peak Influence 4454 | 5 88 . 94 157 329 383 . . . . 243 . . . . 392 . . . . 451 1120 4454 3995 3015 2496 Initial 2505 | . 3 . 88 31 61 383 . . . . . . . . . 18 . . . . 31 216 621 2505 2207 1808 Average 1346 | 1 23 . 86 37 154 328 . . . . 53 . . . . 174 . . . . 199 646 2628 3116 2591 2144 Influence Increases 16185 | 20 166 325 6 293 606 572 255 158 . 74 495 80 235 . 170 531 40 325 660 271 928 1535 5043 1730 898 769 Destroy 0b10 Robot/C 8980 | . 100 280 . 80 180 120 240 120 . 60 220 80 200 . 140 320 40 220 460 200 360 660 3060 900 580 360 Destroy 0b10 Robot/NC 335 | 20 5 . . 5 5 15 . . . . 35 . . . . 20 . . 10 10 15 20 110 60 5 . Destroy Leader 1070 | . 22 . . 12 . 30 . 10 . 10 66 . 20 . 30 52 . 30 . 10 82 96 338 150 72 40 Allied During Kill 671 | . . . . . 8 22 . 13 . 4 4 . . . . . . . 160 21 97 . 63 95 97 87 Successful Hack 109 | . 23 . 6 7 15 . . . . . 19 . . . . 15 . . . . 18 6 . . . . Select Force Hacks 210 | . . . . . 210 . . . . . . . . . . . . . . . . . . . . . Disable Machine 945 | . . . . 15 15 15 . . . . 45 . . . . 30 . . . . 75 255 360 75 45 15 Destroy Structure 1616 | . 1 . . 2 11 20 . . . . 106 . . . . 94 . . . . 164 208 284 450 54 222 Advance Influence 350 | . . . . . . 350 . . . . . . . . . . . . . . . . . . . . Partial Spotted 30 | . . . . 15 . . . . . . . . . . . . . . . . . . 15 . . . Lose Combat Pursuer 615 | . 15 45 . 15 . . 15 15 . . . . 15 . . . . 75 30 30 15 30 225 . 45 45 Miscellaneous 1254 | . . . . 142 162 . . . . . . . . . . . . . . . 102 260 588 . . . Influence Decreases 13728 | 15 147 179 102 210 682 348 400 318 . 74 252 270 131 157 140 229 346 186 299 750 590 815 1694 2259 1808 1327 Entered New Map 7062 | . 2 12 82 43 96 48 114 31 . . . 90 11 157 . 12 124 6 165 526 16 169 484 1949 1718 1207 Time Decay 5036 | 15 145 147 10 80 586 180 246 267 . 74 238 180 120 . 130 192 222 180 54 160 364 616 740 40 50 . Lost Part 700 | . . 20 10 30 . . 10 . . . 10 . . . 10 . . . . . . 30 370 210 . . Lost Ally 698 | . . . . . . 120 30 20 . . 4 . . . . . . . 80 64 60 . 100 60 40 120 Purge Threat 232 | . . . . 57 . . . . . . . . . . . 25 . . . . 150 . . . . . Squads Dispatched 91 | . . . 3 3 . . . . . . 8 . . . . 1 . . . . 3 13 40 . 9 11 Investigation 5 | . . . . 2 . . . . . . 1 . . . . 1 . . . . . . . . . 1 Extermination 18 | . . . . . . . . . . . 2 . . . . . . . . . 2 7 7 . . . Reinforcement 20 | . . . 3 1 . . . . . . 1 . . . . . . . . . 1 1 8 . 5 . Assault 42 | . . . . . . . . . . . . . . . . . . . . . . 5 25 . 4 8 Garrison 6 | . . . . . . . . . . . 4 . . . . . . . . . . . . . . 2 Intercept . | . . . . . . . . . . . . . . . . . . . . . . . . . . . Searches Triggered . | . . . . . . . . . . . . . . . . . . . . . . . . . . . Data Miner Redirects 12 | . . . . . . . . . . . . . . . . . . . . . . 2 10 . . . Construction Impeded 3 | . . . . . . . . . . . 1 . . . . . . . . . . . 2 . . . Haulers Reinforced . | . . . . . . . . . . . . . . . . . . . . . . . . . . . Active Scanning Responses . | . . . . . . . . . . . . . . . . . . . . . . . . . . . Cargo Convoy Interrupts . | . . . . . . . . . . . . . . . . . . . . . . . . . . . Stealth | -11 -10 -10 -8 -8 -8 -6 -6 -6 -6 -5 -5 -5 -5 -5 -4 -4 -4 -4 -4 -3 -3 -3 -3 -2 -2 -1 --------- Run | Yrd Mat Sub Mat Sto Rec Fac Low Low Dat Pro Fac Upp Upp Zhi Pro Fac Upp Upp War Pro Res Qua Frg Res Tes Acc Distress Signals 29 | . . . 1 1 . . . . . . 4 . . . . . . . 2 . 1 . . 18 1 1 Communications Jammed 83 | . . . . . . . . . . . . . . . . . . . . 32 15 36 . . . . Distress Signals 78 | . . . . . . . . . . . . . . . . . . . . 32 10 36 . . . . Times Spotted 735 | . 9 25 8 19 13 6 13 6 . 3 23 4 11 3 8 18 2 16 33 11 30 45 242 123 41 23 Peak Tracking Total 28 | . 4 5 8 14 3 2 9 6 . 1 8 3 3 3 3 6 1 9 13 3 5 4 14 25 14 28 Tactical Retreats 27 | . 1 1 . 1 . . 1 1 . . . . 1 . . . . 2 1 2 1 2 10 . 1 2 Traps | -11 -10 -10 -8 -8 -8 -6 -6 -6 -6 -5 -5 -5 -5 -5 -4 -4 -4 -4 -4 -3 -3 -3 -3 -2 -2 -1 ------- Run | Yrd Mat Sub Mat Sto Rec Fac Low Low Dat Pro Fac Upp Upp Zhi Pro Fac Upp Upp War Pro Res Qua Frg Res Tes Acc Traps Triggered 14 | . 1 . . . . . . . . . . . . . . 1 . . . . . . 12 . . . Indirectly . | . . . . . . . . . . . . . . . . . . . . . . . . . . . Trap Hack Attempts . | . . . . . . . . . . . . . . . . . . . . . . . . . . . Triggered . | . . . . . . . . . . . . . . . . . . . . . . . . . . . Disarmed . | . . . . . . . . . . . . . . . . . . . . . . . . . . . Reprogrammed . | . . . . . . . . . . . . . . . . . . . . . . . . . . . Reused . | . . . . . . . . . . . . . . . . . . . . . . . . . . . Traps Extracted . | . . . . . . . . . . . . . . . . . . . . . . . . . . . Installed . | . . . . . . . . . . . . . . . . . . . . . . . . . . . Triggered . | . . . . . . . . . . . . . . . . . . . . . . . . . . . Machines | -11 -10 -10 -8 -8 -8 -6 -6 -6 -6 -5 -5 -5 -5 -5 -4 -4 -4 -4 -4 -3 -3 -3 -3 -2 -2 -1 ---------- Run | Yrd Mat Sub Mat Sto Rec Fac Low Low Dat Pro Fac Upp Upp Zhi Pro Fac Upp Upp War Pro Res Qua Frg Res Tes Acc Machines Disabled 83 | . . . . 1 1 1 1 . . . 3 . . 1 . 2 1 . 3 . 5 17 38 5 3 1 Max in Single Turn 3 | . . . . 1 . . 1 . . . 2 . . 1 . 2 1 . 1 . 2 1 3 1 1 1 Garrison Access 5 | . . . . 1 . . . . . . . . . . . 1 . . . . . . 1 2 . . Energy Cycler 1 | . . . . . . . . . . . . . . . . . . . . . . . . . . 1 Machines Repaired . | . . . . . . . . . . . . . . . . . . . . . . . . . . . Machines Dismantled . | . . . . . . . . . . . . . . . . . . . . . . . . . . . Machines Sabotaged . | . . . . . . . . . . . . . . . . . . . . . . . . . . . Overloaded Fab Kills . | . . . . . . . . . . . . . . . . . . . . . . . . . . . Hacking | -11 -10 -10 -8 -8 -8 -6 -6 -6 -6 -5 -5 -5 -5 -5 -4 -4 -4 -4 -4 -3 -3 -3 -3 -2 -2 -1 --------- Run | Yrd Mat Sub Mat Sto Rec Fac Low Low Dat Pro Fac Upp Upp Zhi Pro Fac Upp Upp War Pro Res Qua Frg Res Tes Acc Machines Accessed 63 | . 5 . 1 6 15 . . 1 3 . 4 . . 4 . 4 . . 6 1 3 5 2 1 1 1 Terminals 32 | . 5 . 1 4 6 . . . . . 3 . . . . 2 . . . 1 3 4 1 . 1 1 Fabricators . | . . . . . . . . . . . . . . . . . . . . . . . . . . . Repair Stations . | . . . . . . . . . . . . . . . . . . . . . . . . . . . Recycling Units 10 | . . . . 1 8 . . . . . . . . . . 1 . . . . . . . . . . Scanalyzers 1 | . . . . . . . . . . . 1 . . . . . . . . . . . . . . . Garrison Access 5 | . . . . 1 . . . . . . . . . . . 1 . . . . . 1 1 1 . . Total Hacks 162 | . 18 . 2 11 33 . . 1 21 . 9 . . 17 . 9 . . 12 2 6 10 4 4 1 2 Successful 114 | . 9 . 1 7 28 . . 1 21 . 2 . . 17 . 6 . . 12 1 3 2 2 1 1 . Failed 48 | . 9 . 1 4 5 . . . . . 7 . . . . 3 . . . 1 3 8 2 3 . 2 Catastrophic 13 | . 1 . . 2 1 . . . . . 3 . . . . 1 . . . . 1 1 . 2 . 1 Database Lockouts . | . . . . . . . . . . . . . . . . . . . . . . . . . . . Manual 52 | . 18 . 2 1 19 . . . . . 6 . . . . 2 . . 1 . . 3 . . . . Terminals 75 | . 18 . 2 8 12 . . . . . 8 . . . . 7 . . . 2 6 8 1 . 1 2 Fabricators . | . . . . . . . . . . . . . . . . . . . . . . . . . . . Repair Stations . | . . . . . . . . . . . . . . . . . . . . . . . . . . . Recycling Units 22 | . . . . 2 19 . . . . . . . . . . 1 . . . . . . . . . . Scanalyzers 1 | . . . . . . . . . . . 1 . . . . . . . . . . . . . . . Garrison Access 11 | . . . . 1 . . . . . . . . . . . 1 . . . . . 2 3 4 . . Terminal Hacks 75 | . 2 . . 6 3 . . 1 21 . 1 . . 17 . 4 . . 12 1 3 2 1 . 1 . Record 17 | . . . . . . . . . 6 . . . . 5 . . . . 6 . . . . . . . Part Schematic 13 | . . . . . . . . . 8 . . . . 4 . 1 . . . . . . . . . . Robot Schematic 5 | . . . . 1 . . . . 4 . . . . . . . . . . . . . . . . . Robot Analysis 4 | . . . . . . . . . . . . . . 4 . . . . . . . . . . . . Prototype ID Bank 11 | . . . . . . . . . 3 . . . . 4 . . . . 4 . . . . . . . Open Door 6 | . . . . 1 . . . 1 . . . . . . . . . . 2 1 . . . . 1 . Branch Access Points 3 | . . . . . . . . . . . 1 . . . . 1 . . . . 1 . . . . . Terminal Index 3 | . . . . 1 1 . . . . . . . . . . . . . . . 1 . . . . . Unreport Threat 5 | . . . . 2 . . . . . . . . . . . 2 . . . . 1 . . . . . Locate Traps 2 | . 1 . . 1 . . . . . . . . . . . . . . . . . . . . . . Registered Components 1 | . . . . . . . . . . . . . . . . . . . . . . 1 . . . . Zone Layout 2 | . 1 . . . . . . . . . . . . . . . . . . . . 1 . . . . Proto ID Catalog 1 | . . . . . . . . . . . . . . . . . . . . . . . 1 . . . Release Object 2 | . . . . . 2 . . . . . . . . . . . . . . . . . . . . . Fabricator Hacks . | . . . . . . . . . . . . . . . . . . . . . . . . . . . Repair Station Hacks . | . . . . . . . . . . . . . . . . . . . . . . . . . . . Recycling Unit Hacks 9 | . . . . . 8 . . . . . . . . . . 1 . . . . . . . . . . Retrieve Components 9 | . . . . . 8 . . . . . . . . . . 1 . . . . . . . . . . Scanalyzer 1 | . . . . . . . . . . . 1 . . . . . . . . . . . . . . . Retrieve Study 1 | . . . . . . . . . . . 1 . . . . . . . . . . . . . . . Garrison Access Hacks 4 | . . . . 1 . . . . . . . . . . . 1 . . . . . . 1 1 . . Seal Access 4 | . . . . 1 . . . . . . . . . . . 1 . . . . . . 1 1 . . Unauthorized Hacks 25 | . 7 . 1 . 17 . . . . . . . . . . . . . . . . . . . . . Terminals 18 | . 7 . 1 . 10 . . . . . . . . . . . . . . . . . . . . . Assimilate 1 | . . . 1 . . . . . . . . . . . . . . . . . . . . . . . Botnet 6 | . 2 . . . 4 . . . . . . . . . . . . . . . . . . . . . Skim 11 | . 5 . . . 6 . . . . . . . . . . . . . . . . . . . . . Fabricators . | . . . . . . . . . . . . . . . . . . . . . . . . . . . Repair Stations . | . . . . . . . . . . . . . . . . . . . . . . . . . . . Recycling Units 7 | . . . . . 7 . . . . . . . . . . . . . . . . . . . . . Tunnel 7 | . . . . . 7 . . . . . . . . . . . . . . . . . . . . . Scanalyzers . | . . . . . . . . . . . . . . . . . . . . . . . . . . . Garrison Access . | . . . . . . . . . . . . . . . . . . . . . . . . . . . Data Cores Recovered 1 | . . . . . . . . . . . . . . . . . . . . . 1 . . . . . Used . | . . . . . . . . . . . . . . . . . . . . . . . . . . . Hacking Detections 32 | . 4 . 1 4 7 . . . . . 3 . . . . 2 . . . 1 3 4 1 1 . 1 Full Trace Events 4 | . . . . 2 . . . . . . 1 . . . . . . . . . . . . . . 1 Feedback Events . | . . . . . . . . . . . . . . . . . . . . . . . . . . . Feedback Blocked . | . . . . . . . . . . . . . . . . . . . . . . . . . . . Robot Schematics Acquired 9 | . . . . 1 . . . . 4 . . . . . . . . . . . . 1 1 . 2 . Robots Built . | . . . . . . . . . . . . . . . . . . . . . . . . . . . Authchips . | . . . . . . . . . . . . . . . . . . . . . . . . . . . Time . | . . . . . . . . . . . . . . . . . . . . . . . . . . . Total Robot Build Rating . | . . . . . . . . . . . . . . . . . . . . . . . . . . . Part Schematics Acquired 23 | . . . . . . . . . 8 . . . . 4 . 1 . . . . . 4 2 . 4 . Parts Built . | . . . . . . . . . . . . . . . . . . . . . . . . . . . Authchips . | . . . . . . . . . . . . . . . . . . . . . . . . . . . Time . | . . . . . . . . . . . . . . . . . . . . . . . . . . . Total Part Build Rating . | . . . . . . . . . . . . . . . . . . . . . . . . . . . Part Studies Acquired 1 | . . . . . . . . . . . 1 . . . . . . . . . . . . . . . Parts Repaired . | . . . . . . . . . . . . . . . . . . . . . . . . . . . Time . | . . . . . . . . . . . . . . . . . . . . . . . . . . . Parts Recycled . | . . . . . . . . . . . . . . . . . . . . . . . . . . . Recycled Matter . | . . . . . . . . . . . . . . . . . . . . . . . . . . . Retrieved Matter . | . . . . . . . . . . . . . . . . . . . . . . . . . . . Retrieved Components 23 | . . . . . 17 . . . . . . . . . . 6 . . . . . . . . . . Parts Scanalyzed . | . . . . . . . . . . . . . . . . . . . . . . . . . . . Part Schematics Acquired . | . . . . . . . . . . . . . . . . . . . . . . . . . . . Parts Damaged . | . . . . . . . . . . . . . . . . . . . . . . . . . . . Bothacking | -11 -10 -10 -8 -8 -8 -6 -6 -6 -6 -5 -5 -5 -5 -5 -4 -4 -4 -4 -4 -3 -3 -3 -3 -2 -2 -1 ------------ Run | Yrd Mat Sub Mat Sto Rec Fac Low Low Dat Pro Fac Upp Upp Zhi Pro Fac Upp Upp War Pro Res Qua Frg Res Tes Acc Used RIF Installer . | . . . . . . . . . . . . . . . . . . . . . . . . . . . Robots Hacked . | . . . . . . . . . . . . . . . . . . . . . . . . . . . Non-combat . | . . . . . . . . . . . . . . . . . . . . . . . . . . . Combat . | . . . . . . . . . . . . . . . . . . . . . . . . . . . Robot Hacks Applied . | . . . . . . . . . . . . . . . . . . . . . . . . . . . Relay Couplers Released 2 | . . . . . . . . . . . . . . . . . . . . . . . . 2 . . Machine Destruction 2 | . . . . . . . . . . . . . . . . . . . . . . . . 2 . . Fabnet Peak Effective % . | . . . . . . . . . . . . . . . . . . . . . . . . . . . Robots Rewired 31 | . . . . . 12 . 2 . . . . . . . . . . . 5 9 . . . 1 2 . Allies Hacked 3 | . . . . . . . . . . . . . . . . . . . . . 2 . 1 . . . Hacks Repelled . | . . . . . . . . . . . . . . . . . . . . . . . . . . . Allies | -11 -10 -10 -8 -8 -8 -6 -6 -6 -6 -5 -5 -5 -5 -5 -4 -4 -4 -4 -4 -3 -3 -3 -3 -2 -2 -1 -------- Run | Yrd Mat Sub Mat Sto Rec Fac Low Low Dat Pro Fac Upp Upp Zhi Pro Fac Upp Upp War Pro Res Qua Frg Res Tes Acc Total Allies 44 | . . . 1 . 12 . 2 . . . . . . . . . . . 5 9 . . 8 5 2 . Largest Group 12 | . . . 1 1 12 12 3 2 1 1 1 . . . . . . . 5 5 4 . 2 3 2 . Highest-Rated Group 268 | . . . 10 10 222 222 62 62 32 32 32 . . . . . . . 268 168 168 . 173 207 180 . Highest-Rated Ally 173 | . . . 10 10 34 34 32 32 32 32 32 . . . . . . . 64 42 42 . 173 82 90 . Total Orders 10 | . . . . . 1 . . . . . . . . . . . . . . . . . . . . 9 ROAM 3 | . . . . . . . . . . . . . . . . . . . . . . . . . . 3 FOLLOW 1 | . . . . . . . . . . . . . . . . . . . . . . . . . . 1 PICKUP 1 | . . . . . 1 . . . . . . . . . . . . . . . . . . . . . RETURN 5 | . . . . . . . . . . . . . . . . . . . . . . . . . . 5 Ally Attacks 357 | . . . . . 2 8 . 10 . 1 8 . . . . . . . 67 4 10 . 50 26 129 42 Total Damage 14091 | . . . . . 37 287 . 333 . 52 233 . . . . . . . 2723 50 316 . 1443 1101 5533 1983 Kills 76 | . . . . . 1 1 . 3 . . 1 . . . . . . . 16 1 1 . 5 5 29 13 Allies Corrupted 7 | . . . . . . . . . . . . . . . . . . . . . 3 . 1 . . 3 Allies Melted 1 | . . . . . . . . . . . . . . . . . . . . . . . 1 . . . X0-1V1 Amusement Gains 473 | . 2 2 10 10 . 25 . . . . . 5 . 90 . . . . 20 . . 40 146 37 40 46 Good Acts 171 | . . 21 7 3 5 1 2 5 . 1 1 9 . . 2 1 3 3 5 5 3 11 58 15 9 1 Bad Acts 148 | . . 25 4 3 10 1 3 . . . 7 15 4 . 1 2 3 3 2 . 6 15 28 4 6 6 Intel | -11 -10 -10 -8 -8 -8 -6 -6 -6 -6 -5 -5 -5 -5 -5 -4 -4 -4 -4 -4 -3 -3 -3 -3 -2 -2 -1 ------- Run | Yrd Mat Sub Mat Sto Rec Fac Low Low Dat Pro Fac Upp Upp Zhi Pro Fac Upp Upp War Pro Res Qua Frg Res Tes Acc Active Infowar (turns) 9793 | 26 569 157 . 194 779 361 403 787 153 617 697 190 6 . . 125 463 16 . 280 924 731 411 1365 280 259 Sensors 154 | . . . . . . . . . . . . . . . . . . . . . . . . . 154 . A.S.S. 1 | . . . . . . . . . . . . . . . . . . . . . . . 1 . . . IFF 445 | . . . . . . . . . . . 255 190 . . . . . . . . . . . . . . Seismic 4488 | 26 569 157 . 194 779 361 403 787 153 617 442 . . . . . . . . . . . . . . . T.N.C. 287 | . . . . 193 94 . . . . . . . . . . . . . . . . . . . . . Cloaking 2314 | . . . . . . . . . . . . . . . . . . . . . . . 410 1365 280 259 Jamming 2539 | . . . . . . . . . . . . . . . . 125 463 16 . 280 924 731 . . . . ECM 6 | . . . . . . . . . . . . . 6 . . . . . . . . . . . . . Robot Analysis Total 4 | . . . . . . . . . . . . . . 4 . . . . . . . . . . . . Derelict Logs Recovered 5 | . . . . . . . 2 . . . . . 1 . . . 1 1 . . . . . . . . Drone Launches 15 | . . . . . . . . . . . . . . . . . . . . . . . . . . 15 Drone Recoveries 6 | . . . . . . . . . . . . . . . . . . . . . . . . . . 6 Exploration | -11 -10 -10 -8 -8 -8 -6 -6 -6 -6 -5 -5 -5 -5 -5 -4 -4 -4 -4 -4 -3 -3 -3 -3 -2 -2 -1 ------------- Run | Yrd Mat Sub Mat Sto Rec Fac Low Low Dat Pro Fac Upp Upp Zhi Pro Fac Upp Upp War Pro Res Qua Frg Res Tes Acc Turns Passed 20439 | 106 569 1801 25 214 1828 363 531 787 153 617 811 370 250 146 266 490 467 375 1053 510 924 2054 3795 1375 300 259 Spaces Moved 12157 | 57 237 748 36 298 987 160 258 412 74 294 344 293 205 166 160 353 186 389 733 323 587 1089 2289 804 428 247 Core 380 | 30 . 154 . . 62 . . . . . . . . . . . . . . . . . . 35 99 . Treads 4133 | 27 237 94 . . 489 135 229 374 . . . 38 . . . . 11 389 733 124 34 174 585 460 . . Legs 1897 | . . . . . . 25 29 38 73 . 38 158 . . . 350 175 . . 144 147 380 293 47 . . Wheels 1084 | . . 425 . . 84 . . . . . . . . . . . . . . . . 188 387 . . . Hover 2310 | . . 75 36 84 50 . . . . . 37 . 1 166 160 3 . . . . 325 228 307 262 329 247 Flight 2353 | . . . . 214 302 . . . 1 294 269 97 204 . . . . . . 55 81 119 717 . . . Fastest Speed 36 | 50 160 46 46 37 40 119 119 165 148 200 92 47 47 47 47 47 75 75 48 67 80 69 57 50 40 36 Average Speed 113 | 102 160 188 47 48 127 146 159 182 186 200 184 107 47 47 47 109 150 75 74 94 113 117 91 130 47 43 Slowest Speed 450 | 160 160 450 110 120 232 152 165 190 206 200 200 175 47 47 47 137 244 75 124 124 214 152 281 223 96 110 Overloaded Moves . | . . . . . . . . . . . . . . . . . . . . . . . . . . . Propulsion Burnouts . | . . . . . . . . . . . . . . . . . . . . . . . . . . . Robots Hopped 4 | . . . . 2 1 . . . . . . . . . . . . . . . . . 1 . . . Potential Cave-ins 11 | . . 2 . . . . 1 . . . . 1 . . . . . . . . 2 . 2 3 . . Cave-ins Triggered 1 | . . . . . . . . . . . . . . . . . . . . . . . . 1 . . Teleports 6 | . . . . . . . . . . . . . . . . . . . . . . 2 2 2 . . Exploration Rate (%) 42 | 4 48 41 6 57 99 6 44 64 68 41 12 59 38 65 31 8 37 46 92 47 21 89 50 28 46 10 Regions Visited 26 Branch Regions 18 Pre-discovered Areas 14 | . 1 . . . 7 . . . 1 . . . . 3 . . 1 1 . . . . . . . . Known Exits Taken 11 | . . 1 . 1 1 1 . . . 1 1 1 . . . 1 . . . 1 1 . 1 . . . Unknown Exits Taken 15 | 1 1 . 1 . . . 1 1 1 . . . 1 1 1 . 1 1 1 . . 1 . 1 1 . Scrap Searched 14 | . . 3 . . . . . 2 . . . . 3 . 1 . 3 1 . 1 . . . . . . Spaces Dug 86 | . . . . 3 1 4 . . . . 10 . . . . . 3 . . . 21 9 19 2 . 14 Terrain Destroyed 972 | . . 8 . 3 2 6 5 2 . 9 54 23 23 1 18 50 12 40 12 19 104 124 115 229 41 72 Melee 4 | . . . . 3 1 . . . . . . . . . . . . . . . . . . . . . Projectile 582 | . . 8 . . 1 6 5 2 . 9 44 21 19 1 18 13 12 40 12 19 104 124 76 43 3 2 AOE 383 | . . . . . . . . . . . 10 2 4 . . 37 . . . . . . 36 186 38 70 Terrain Rammed . | . . . . . . . . . . . . . . . . . . . . . . . . . . . Walls Destroyed . | . . . . . . . . . . . . . . . . . . . . . . . . . . . Machines Disabled . | . . . . . . . . . . . . . . . . . . . . . . . . . . . Actions | -11 -10 -10 -8 -8 -8 -6 -6 -6 -6 -5 -5 -5 -5 -5 -4 -4 -4 -4 -4 -3 -3 -3 -3 -2 -2 -1 --------- Run | Yrd Mat Sub Mat Sto Rec Fac Low Low Dat Pro Fac Upp Upp Zhi Pro Fac Upp Upp War Pro Res Qua Frg Res Tes Acc Total 16876 | 82 365 940 41 340 1500 245 330 433 90 304 430 332 326 218 313 399 355 428 1209 467 764 1685 3350 1041 510 379 Wait 2133 | . 90 16 . 4 288 62 28 8 17 . 17 14 99 30 127 1 156 3 360 25 103 378 140 68 9 90 Move 12123 | 56 236 747 35 294 984 159 257 411 73 293 343 292 204 165 159 352 185 388 732 322 586 1088 2286 802 428 246 Hop 3 | . . . . 1 1 . . . . . . . . . . . . . . . . . 1 . . . Pick Up 295 | 8 6 21 2 5 10 1 9 3 . 1 10 8 2 7 4 6 . 4 12 2 8 27 105 22 7 5 Fast Attach 108 | 1 . 2 . 4 2 . . . . . 1 . 1 . . . 2 1 . 3 1 6 39 16 24 5 Attach 175 | 6 . 19 1 2 4 2 . . . 1 5 1 1 4 1 3 . . . 1 3 15 83 14 7 2 Detach 36 | . . . . 1 1 . . . . . 1 . 1 . . . . . . . 1 4 20 6 1 . Swap 89 | . 1 7 . . 2 . 1 1 . . 2 . . 2 2 2 2 2 3 3 5 12 29 2 2 9 Drop 276 | . 1 12 1 10 12 1 . 3 . 1 10 8 4 3 3 6 2 6 13 7 7 27 94 25 13 7 Fire 1164 | 11 31 116 . . 78 20 21 7 . 8 41 9 14 7 17 29 8 24 18 40 49 98 430 66 15 7 Melee 156 | . . . 2 19 2 . . . . . . . . . . . . . . . . 30 94 2 . 7 Ram 9 | . . . . . . . . . . . . . . . . . . . . . 1 . . 4 4 . Kick 1 | . . . . . . . . . . . . . . . . . . . . . . . . 1 . . Crush . | . . . . . . . . . . . . . . . . . . . . . . . . . . . Escape Stasis 40 | . . . . . . . 1 . . . . . . . . . . . . . . . 26 13 . . Rewire 267 | . . . . . 116 . 13 . . . . . . . . . . . 71 64 . . 3 . . . Trap . | . . . . . . . . . . . . . . . . . . . . . . . . . . . Miscellaneous 1 | . . . . . . . . . . . . . . . . . . . . . . . . . . 1 Route ------- -11/Scrapyard -10/Materials (discovered 6 exits: *Mat x3 / *Min x2 / [*Sub]) -10/Subcaves (discovered 3 exits: *Mat x2 / *Rec) -8/Materials (discovered 3 exits: Fac x2 / *Sto) -8/Storage (discovered 2 exits: Fac / *Rec) -8/Recycling -6/Factory (discovered 7 exits: Fac x4 / *Low / Ext x2) -6/Lower Caves -6/Lower Caves (discovered 2 exits: *Fac / *Dat) -6/Data Miner -5/Proximity Caves -5/Factory (discovered 2 exits: *Upp x2) -5/Upper Caves -5/Upper Caves -5/Zhirov -4/Proximity Caves -4/Factory (discovered 3 exits: *Upp x2 / Arm) -4/Upper Caves -4/Upper Caves (discovered 2 exits: Res / *War) -4/Warlord -3/Proximity Caves -3/Research (discovered 3 exits: *Res / *Qua x2) -3/Quarantine (discovered 3 exits: *Res / [*Sec] / *Frg) -3/Protoforge -2/Research -2/Testing -1/Access To Epsilon Eridani History --------- Turn | Location | Event 8 | -11/Scrapyard | Discovered new exit (range 15) 107 | -11/Scrapyard | Entered Materials 260 | -10/Materials | Discovered new exit (range 16) 307 | -10/Materials | Build established: Mutant 325 | -10/Materials | Learned location of 1 exit from Storage 361 | -10/Materials | Identified exit to Materials 386 | -10/Materials | Discovered exit to Materials (range 14) 389 | -10/Materials | Learned location of Mines (-10) 405 | -10/Materials | Learned 2 Materials zone layouts 410 | -10/Materials | Learned location of 1 exit from Recycling 411 | -10/Materials | Identified exit to Mines 417 | -10/Materials | Learned 2 Mines zone layouts 431 | -10/Materials | Learned location of 2 exits from Subcaves 636 | -10/Materials | Discovered new exit (range 7) 674 | -10/Materials | Prayed at D.C.S.S. Altar Unit 676 | -10/Materials | Entered Subcaves 677 | -10/Subcaves | Identified exit to Recycling 677 | -10/Subcaves | Identified exit to Materials 699 | -10/Subcaves | Energy generation permanently improved by X0-1V1 (+10) 757 | -10/Subcaves | A swath of the cavern ceiling suddenly collapsed 867 | -10/Subcaves | Lost 3 parts (1n1u1w) 1111 | -10/Subcaves | Lost 3 parts (1p1n1w) 1138 | -10/Subcaves | Shifting Twisted Machinery released Mak. Light Armor Plating 1149 | -10/Subcaves | A swath of the cavern ceiling suddenly collapsed 1161 | -10/Subcaves | Shifting Twisted Machinery released Sub. Monowheel 1185 | -10/Subcaves | System corruption reached 10% 1205 | -10/Subcaves | Core integrity fell below 50% 1225 | -10/Subcaves | Core integrity fell below 20% 1250 | -10/Subcaves | Lost 4 parts (1p1n2w) 1252 | -10/Subcaves | Core integrity permanently improved by X0-1V1 (+200) 1288 | -10/Subcaves | X0-1V1 sent hostile G-34 Mercenary (x3) 1344 | -10/Subcaves | Spk. Treads reconfigured into Item Mimic 1447 | -10/Subcaves | Discovered exit to Materials (range 8) 1533 | -10/Subcaves | Melee accuracy permanently improved by X0-1V1 (+9%) 1773 | -10/Subcaves | X0-1V1 activates XOMVISION 2350 | -10/Subcaves | Core integrity restored by X0-1V1 (+67) 2368 | -10/Subcaves | X0-1V1 mutated your Propulsion slot to Power slot 2415 | -10/Subcaves | X0-1V1 sent hostile G-34 Mercenary (x3) 2440 | -10/Subcaves | X0-1V1 mutated your Weapon slot to Propulsion slot 2463 | -10/Subcaves | Sub. Monowheel reconfigured into Item Mimic 2465 | -10/Subcaves | X0-1V1 whisked you away to safety 2477 | -10/Subcaves | Entered Materials 2477 | -8/Materials | Evolved 4 slots: Propulsion x1, Utility x2, Weapon x1 2478 | -8/Materials | Identified exit to Factory 2479 | -8/Materials | X0-1V1 announced a LAN party 2485 | -8/Materials | X0-1V1 redirected Transport squads to designated parking area 2488 | -8/Materials | X0-1V1 foreshadows a heat wave 2489 | -8/Materials | X0-1V1 released a cloud of subatomizers 2490 | -8/Materials | X0-1V1 revealed exit location to -7/Factory 2492 | -8/Materials | Discovered new exit (range 12) 2502 | -8/Materials | Entered Storage 2502 | -8/Storage | Accompanied by 1 ally 2711 | -8/Storage | X0-1V1 added 0b10 threat records associated with you (minor) 2715 | -8/Storage | Used back door to open Recycling access 2715 | -8/Storage | Discovered exit to Recycling (range 5) 2716 | -8/Storage | Entered Recycling 2717 | -8/Recycling | Identified exit to Factory 2733 | -8/Recycling | Lost 3 parts (2n1u) 2750 | -8/Recycling | X0-1V1 mutated your Propulsion slot to Weapon slot 2767 | -8/Recycling | Core integrity restored by X0-1V1 (+100) 2809 | -8/Recycling | Entered Scraplab 2811 | -8/Recycling | Found Prototype Device 2811 | -8/Recycling | Identified Scrap Engine 2901 | -8/Recycling | X0-1V1 added 0b10 threat records associated with you (minor) 3045 | -8/Recycling | Learned 2 Lower Caves zone layouts 3046 | -8/Recycling | Learned 8 Factory zone layouts 3059 | -8/Recycling | Learned Storage garrison access intel 3080 | -8/Recycling | Learned Factory trap positions 3330 | -8/Recycling | X0-1V1 sent hostile H-55 Commando (x3) 3460 | -8/Recycling | Build established: Construct 3700 | -8/Recycling | X0-1V1 mutated your Weapon slot to Propulsion slot 4361 | -8/Recycling | Build established: Commander-Construct 4544 | -8/Recycling | Entered Factory 4544 | -6/Factory | Accompanied by 12 allies 4544 | -6/Factory | Evolved 4 slots: Propulsion x1, Utility x1, Weapon x2 4545 | -6/Factory | Identified exit to Factory 4545 | -6/Factory | Identified exit to Extension 4546 | -6/Factory | Identified exit to Lower Caves 4547 | -6/Factory | Loaded intel: 82 trap records 4702 | -6/Factory | Spotted B-75 Beast 4715 | -6/Factory | Destroyed B-75 Beast 4857 | -6/Factory | Lost 7 allies 4907 | -6/Factory | Entered Lower Caves 4907 | -6/Lower Caves | Accompanied by 3 allies 4942 | -6/Lower Caves | Attracted the attention of an 0b10 checkpoint 4998 | -6/Lower Caves | Attracted the attention of an 0b10 outpost 5063 | -6/Lower Caves | Lost 3 allies 5159 | -6/Lower Caves | Build established: Construct 5163 | -6/Lower Caves | Learned Factory stockpile data 5221 | -6/Lower Caves | X0-1V1 activates XOMVISION 5264 | -6/Lower Caves | Learned Factory terminal intel 5325 | -6/Lower Caves | Discovered new exit (range 4) 5438 | -6/Lower Caves | Entered another Lower Caves area 5438 | -6/Lower Caves | Accompanied by 2 allies 5470 | -6/Lower Caves | Discovered exit to Factory (range 8) 5517 | -6/Lower Caves | Found DCF Scrap (11 items) 5612 | -6/Lower Caves | X0-1V1 activates XOMVISION 6031 | -6/Lower Caves | Discovered new exit (range 10) 6225 | -6/Lower Caves | Entered Data Miner 6225 | -6/Data Miner | Accompanied by 1 ally 6225 | -6/Data Miner | Discovered new exit (range 6) 6262 | -6/Data Miner | Met Data Miner 6294 | -6/Data Miner | Learned location of Section 7 (-3) 6294 | -6/Data Miner | Acquired the access code to Warlord's prototype stash 6321 | -6/Data Miner | Received God Mode back door access code from Data Miner 6378 | -6/Data Miner | Entered Proximity Caves 6378 | -5/Proximity Caves | Accompanied by 1 ally 6512 | -5/Proximity Caves | X0-1V1 activates XOMVISION 6805 | -5/Proximity Caves | Spotted B-75 Beast 6821 | -5/Proximity Caves | Destroyed B-75 Beast 6983 | -5/Proximity Caves | Discovered exit to Factory (range 6) 6995 | -5/Proximity Caves | Entered Factory 6995 | -5/Factory | Accompanied by 1 ally 6995 | -5/Factory | Evolved 2 slots: Propulsion x1, Utility x1 6997 | -5/Factory | Loaded intel: 26 terminal locations 7203 | -5/Factory | Identified exit to Upper Caves 7500 | -5/Factory | Garrison activated, responded to threat 7608 | -5/Factory | X0-1V1 upgraded hostiles (x1) 7625 | -5/Factory | X0-1V1 vaporized surrounding terrain (radius 24) 7666 | -5/Factory | Sensors blinded by X0-1V1 7752 | -5/Factory | Garrison activated, responded to threat 7806 | -5/Factory | Entered Upper Caves 7809 | -5/Upper Caves | Identified exit to Upper Caves 7809 | -5/Upper Caves | X0-1V1 revealed exit location to -5/Upper Caves 7839 | -5/Upper Caves | X0-1V1 vaporized surrounding terrain (radius 16) 7974 | -5/Upper Caves | X0-1V1 sent hostile Savage (x1) 7990 | -5/Upper Caves | X0-1V1 vaporized surrounding terrain (radius 22) 8052 | -5/Upper Caves | X0-1V1 mutated your Utility slot to Propulsion slot 8115 | -5/Upper Caves | X0-1V1 vaporized surrounding terrain (radius 24) 8127 | -5/Upper Caves | X0-1V1 mutated your Propulsion slot to Weapon slot 8141 | -5/Upper Caves | Attracted the attention of an 0b10 checkpoint 8176 | -5/Upper Caves | Entered another Upper Caves area 8179 | -5/Upper Caves | X0-1V1 sent hostile X-72 Disruptor (x3) 8245 | -5/Upper Caves | Destroyed 9 combat bots 8304 | -5/Upper Caves | System corruption reached 10% 8346 | -5/Upper Caves | Learned Factory stockpile data 8348 | -5/Upper Caves | Discovered new exit (range 9) 8426 | -5/Upper Caves | Entered Zhirov 8426 | -5/Zhirov | Discovered new exit (range 3) 8435 | -5/Zhirov | Met Zhirov 8443 | -5/Zhirov | Learned location of Quarantine (-3) 8443 | -5/Zhirov | Learned location of Testing (-2) 8448 | -5/Zhirov | Zhirov requested help retrieving the SGEMP Prototype 8456 | -5/Zhirov | Found Alien Artifact 8457 | -5/Zhirov | Identified Integrated Reactor 8457 | -5/Zhirov | Installed Integrated Reactor, increased core energy generation (+10) 8494 | -5/Zhirov | Found Alien Artifact 8518 | -5/Zhirov | Cloak Generator disabled 8518 | -5/Zhirov | Attacked by Zhirov 8528 | -5/Zhirov | Enhanced Grunts warped into view 8543 | -5/Zhirov | Destroyed Perun 8548 | -5/Zhirov | Zhirov detonated his lab 8572 | -5/Zhirov | Entered Proximity Caves 8579 | -4/Proximity Caves | Lost 3 parts (1u2w) 8579 | -4/Proximity Caves | Lost 8 allies 8690 | -4/Proximity Caves | X0-1V1 whisked you away to safety 8699 | -4/Proximity Caves | Discovered new exit (range 11) 8838 | -4/Proximity Caves | Entered Factory 8838 | -4/Factory | Evolved 2 slots: Power x1, Utility x1 8967 | -4/Factory | Identified exit to Upper Caves 8967 | -4/Factory | Identified exit to Armory 9028 | -4/Factory | X0-1V1 sent hostile X-72 Disruptor (x2) 9328 | -4/Factory | Entered Upper Caves 9433 | -4/Upper Caves | Attracted the attention of an 0b10 outpost 9483 | -4/Upper Caves | X0-1V1 activates XOMVISION 9509 | -4/Upper Caves | Found Alien Artifact 9509 | -4/Upper Caves | Identified Core Expander 9509 | -4/Upper Caves | Installed Core Expander, added new Power slot 9557 | -4/Upper Caves | X0-1V1 vaporized surrounding terrain (radius 20) 9596 | -4/Upper Caves | Discovered new exit (range 6) 9795 | -4/Upper Caves | Entered another Upper Caves area 9805 | -4/Upper Caves | X0-1V1 sent hostile G-67 Veteran (x4) 9871 | -4/Upper Caves | Destroyed 8 combat bots 9969 | -4/Upper Caves | Identified exit to Research 9969 | -4/Upper Caves | X0-1V1 revealed exit location to -3/Research 9972 | -4/Upper Caves | Build established: Generator-Construct 10115 | -4/Upper Caves | Discovered new exit (range 7) 10170 | -4/Upper Caves | Entered Warlord 10195 | -4/Warlord | System corruption cleaned by Quarantine Array 10254 | -4/Warlord | Received a Watcher feed algorithm from an ecstatic Tinkerer 10555 | -4/Warlord | Learned Research emergency access door positions 10555 | -4/Warlord | Learned Research trap positions 10555 | -4/Warlord | Learned Factory garrison access intel 10555 | -4/Warlord | Learned Armory terminal intel 10555 | -4/Warlord | Learned Factory terminal intel 10594 | -4/Warlord | Opened Warlord's prototype stash 10614 | -4/Warlord | Found Prototype Device 10615 | -4/Warlord | Identified Exp. Focal Shield 10627 | -4/Warlord | Found Prototype Hackware 10628 | -4/Warlord | Warlord's base attacked by MAIN.C 10637 | -4/Warlord | Met Warlord 10678 | -4/Warlord | Found Prototype Energy Gun 10978 | -4/Warlord | Warlord forces counterattacked 11009 | -4/Warlord | Found Prototype Piercing Weapon 11012 | -4/Warlord | Found Prototype Piercing Weapon 11031 | -4/Warlord | Spotted Striker 11034 | -4/Warlord | Spotted Executioner 11045 | -4/Warlord | Destroyed Striker 11061 | -4/Warlord | Allies destroyed Executioner 11081 | -4/Warlord | Lost 8 allies 11091 | -4/Warlord | Spotted Striker 11095 | -4/Warlord | Allies destroyed V4-GIR(g) 11103 | -4/Warlord | Destroyed Striker 11126 | -4/Warlord | Lost 4 allies 11138 | -4/Warlord | Spotted Striker 11205 | -4/Warlord | Opened side exit 11218 | -4/Warlord | Discovered new exit (range 11) 11223 | -4/Warlord | Entered Proximity Caves 11317 | -3/Proximity Caves | Attracted the attention of an 0b10 checkpoint 11472 | -3/Proximity Caves | Snuck into a huge 0b10 base via the rear entrance 11668 | -3/Proximity Caves | X0-1V1 activates XOMVISION 11729 | -3/Proximity Caves | Lost 5 allies 11733 | -3/Proximity Caves | Entered Research 11733 | -3/Research | Accompanied by 4 allies 11733 | -3/Research | Evolved 2 slots: Utility x2 11734 | -3/Research | Loaded intel: 120 trap records 11782 | -3/Research | Found Gamma Bomb Array 11789 | -3/Research | X0-1V1 enhanced Transport squad support 11833 | -3/Research | Discovered new exit (range 13) 11911 | -3/Research | Identified exit to Research 12132 | -3/Research | X0-1V1 added 0b10 threat records associated with you (minor) 12220 | -3/Research | P-80 Master assimilated allied Champion 8a 12269 | -3/Research | Lost 3 allies 12308 | -3/Research | X0-1V1 redirected Transport squads to designated parking area 12448 | -3/Research | Identified System Mapper 12449 | -3/Research | Identified exit to Quarantine 12449 | -3/Research | Watched by a mysterious "MATRIX" hacker 12657 | -3/Research | Entered Quarantine 12701 | -3/Quarantine | Found Alien Artifact 12706 | -3/Quarantine | Identified Dimensional Node Initializer 12706 | -3/Quarantine | Initialized slip node 12710 | -3/Quarantine | Found Dimensional Node Initializer 12715 | -3/Quarantine | Found Alien Artifact 12716 | -3/Quarantine | Identified Hpw. Transdimensional Reconstructor 12716 | -3/Quarantine | Warped through subspace to slip node 12729 | -3/Quarantine | Found Alien Artifact 12732 | -3/Quarantine | Found Alien Artifact 12734 | -3/Quarantine | Found Hpw. Transdimensional Reconstructor 12735 | -3/Quarantine | Identified Transdimensional Reconstructor (x3) 12735 | -3/Quarantine | Warped through subspace to slip node 12740 | -3/Quarantine | X0-1V1 sent you to a vault 12769 | -3/Quarantine | Found Prototype Processor 12770 | -3/Quarantine | Identified Exp. Armor Integrity Analyzer 12801 | -3/Quarantine | Cryocooling Duct disabled 12816 | -3/Quarantine | Ambient heat levels rising (+20) 12816 | -3/Quarantine | Non-combat units ordered to evacuate 12880 | -3/Quarantine | Found Imp. Powered Armor 12887 | -3/Quarantine | Discovered exit to Research (range 10) 13176 | -3/Quarantine | Found Alien Artifact 13201 | -3/Quarantine | Found Alien Energy Cannon 13406 | -3/Quarantine | System corruption reached 10% 13407 | -3/Quarantine | First assault squad dispatched 13547 | -3/Quarantine | Found Alien Artifact 13802 | -3/Quarantine | Identified Vortex Lance (x2) 13809 | -3/Quarantine | X0-1V1 upgraded hostiles (x1) 13878 | -3/Quarantine | X0-1V1 mutated your Weapon slot to Utility slot 14165 | -3/Quarantine | Build established: Scavenger-Mutant 14197 | -3/Quarantine | Spotted Fortress 14197 | -3/Quarantine | X0-1V1 sent you into danger 14242 | -3/Quarantine | Found Prototype Device 14246 | -3/Quarantine | Found Prototype Device 14254 | -3/Quarantine | Found Prototype Protection 14254 | -3/Quarantine | Identified Centrium Heavy Armor Plating 14274 | -3/Quarantine | Found Prototype Device 14274 | -3/Quarantine | Identified Thermal Barrier 14275 | -3/Quarantine | Identified Exp. Force Field 14277 | -3/Quarantine | Identified Exp. EM Shield 14330 | -3/Quarantine | Incoming assault squad redirected 14368 | -3/Quarantine | Discovered new exit (range 6) 14368 | -3/Quarantine | Discovered new exit (range 6) 14410 | -3/Quarantine | X0-1V1 added 0b10 threat records associated with you (major) 14439 | -3/Quarantine | X0-1V1 announced a LAN party 14679 | -3/Quarantine | Incoming assault squad redirected 14711 | -3/Quarantine | Entered Protoforge 14723 | -3/Protoforge | Superfortress began startup sequence 14758 | -3/Protoforge | Build established: Generator-Mutant 14777 | -3/Protoforge | Spotted B-86 Titan 14787 | -3/Protoforge | Weapon slot count temporarily expanded by X0-1V1 (+3) 14844 | -3/Protoforge | Destroyed B-86 Titan 14892 | -3/Protoforge | Discovered exit to Research (range 15) 14913 | -3/Protoforge | X0-1V1 added 0b10 threat records associated with you (major) 14914 | -3/Protoforge | Initialized slip node 14922 | -3/Protoforge | Spotted Hotshot 14922 | -3/Protoforge | Spotted Hotshot 14922 | -3/Protoforge | Spotted Hotshot 14922 | -3/Protoforge | Spotted Hotshot 14922 | -3/Protoforge | Spotted Hotshot 14922 | -3/Protoforge | Spotted Hotshot 14922 | -3/Protoforge | Spotted Hotshot 14922 | -3/Protoforge | Spotted Hotshot 14922 | -3/Protoforge | Spotted Hotshot 14922 | -3/Protoforge | Spotted Hotshot 14922 | -3/Protoforge | Spotted Hotshot 14922 | -3/Protoforge | Spotted Hotshot 14922 | -3/Protoforge | X0-1V1 sent you into danger 14923 | -3/Protoforge | Spotted Hotshot 14927 | -3/Protoforge | X0-1V1 whisked you away to safety 14937 | -3/Protoforge | Found Prototype Device 14943 | -3/Protoforge | Found Prototype Hackware 14953 | -3/Protoforge | X0-1V1 sent someone to fix up the mess you leave 14961 | -3/Protoforge | First assault squad dispatched 14961 | -3/Protoforge | Spotted Decapitator 14961 | -3/Protoforge | Spotted Decapitator 14961 | -3/Protoforge | Spotted Decapitator 14961 | -3/Protoforge | Spotted Decapitator 14968 | -3/Protoforge | X0-1V1 added 0b10 threat records associated with you (major) 14976 | -3/Protoforge | Identified Cep. Network Penetrator 14976 | -3/Protoforge | Identified Exp. Active Sensor Suite 14979 | -3/Protoforge | Found Exp. Terror Saw 14985 | -3/Protoforge | Found Exp. Terror Saw 14988 | -3/Protoforge | Found Exp. Terror Saw 14996 | -3/Protoforge | Found Prototype Device 15043 | -3/Protoforge | Found Cep. Chromion Battery 15047 | -3/Protoforge | Found Cep. NT7 Matterbank 15050 | -3/Protoforge | Found Cep. NT7 Matterbank 15053 | -3/Protoforge | Found Cep. NT7 Matterbank 15056 | -3/Protoforge | Found Cep. Chromion Battery 15070 | -3/Protoforge | Scanned by Researcher 15092 | -3/Protoforge | Found Cep. Antigrav Storage Unit 15095 | -3/Protoforge | Found Cep. Antigrav Storage Unit 15098 | -3/Protoforge | Found Faulty Cep. Matter Streamer 15110 | -3/Protoforge | Found Faulty Cep. Matter Streamer 15111 | -3/Protoforge | Identified Crosscalibrator 15130 | -3/Protoforge | Spotted V806-m 15167 | -3/Protoforge | Identified Core Cannon 15212 | -3/Protoforge | Destroyed V806-m 15259 | -3/Protoforge | X0-1V1 sent hostile B-74 Champion (x3) 15314 | -3/Protoforge | Core integrity restored by X0-1V1 (+262) 15377 | -3/Protoforge | Destroyed 10 combat bots 15407 | -3/Protoforge | Destroyed Decapitator 15433 | -3/Protoforge | Destroyed Decapitator 15433 | -3/Protoforge | Destroyed Decapitator 15435 | -3/Protoforge | X0-1V1 activates XOMVISION 15476 | -3/Protoforge | X0-1V1 downgraded hostiles (x2) 15502 | -3/Protoforge | X0-1V1 turns hostiles against one another 15530 | -3/Protoforge | Found Prototype Launcher 15533 | -3/Protoforge | Found Prototype Launcher 15539 | -3/Protoforge | Found Prototype Launcher 15541 | -3/Protoforge | Found Prototype Launcher 15542 | -3/Protoforge | Identified Cep. EMP Blanket Launcher (x2) 15544 | -3/Protoforge | Identified Cep. Rapid Grenade Launcher 15545 | -3/Protoforge | Identified Cep. Smart ZDS 15562 | -3/Protoforge | X0-1V1 sent you to a vault 15566 | -3/Protoforge | Found Chaos Jack 15608 | -3/Protoforge | Found Prototype Ballistic Gun 15608 | -3/Protoforge | Identified Multirail 15618 | -3/Protoforge | Found Prototype Slashing Weapon 15618 | -3/Protoforge | Identified Hvy. Scimitar of Distortion 15626 | -3/Protoforge | Found Prototype Launcher 15626 | -3/Protoforge | Identified Ragnarok Missile Launcher 15634 | -3/Protoforge | Found Prototype Device 15634 | -3/Protoforge | Identified Exp. Shock Absorption System 15638 | -3/Protoforge | Found Prototype Device 15638 | -3/Protoforge | Identified Active Sensor Suite 15645 | -3/Protoforge | Found Hvy. Scimitar of Distortion 15669 | -3/Protoforge | Spotted Hotshot 15669 | -3/Protoforge | Spotted Hotshot 15669 | -3/Protoforge | Spotted Hotshot 15669 | -3/Protoforge | Spotted Hotshot 15673 | -3/Protoforge | Found Lrg. Botcube 15736 | -3/Protoforge | Destroyed Hotshot 15742 | -3/Protoforge | Destroyed Hotshot 15743 | -3/Protoforge | Destroyed Hotshot 15772 | -3/Protoforge | Warped through subspace to slip node 15813 | -3/Protoforge | Core integrity restored by X0-1V1 (+340) 15822 | -3/Protoforge | Additional patrols dispatched to research labs 15916 | -3/Protoforge | Spotted Decapitator 15916 | -3/Protoforge | Spotted V261-f 15929 | -3/Protoforge | Spotted Decapitator 15933 | -3/Protoforge | Destroyed Decapitator 15958 | -3/Protoforge | Destroyed Decapitator 15962 | -3/Protoforge | X0-1V1 whisked you away to safety 15987 | -3/Protoforge | Found Exp. System Purifier 16000 | -3/Protoforge | Found Cep. XC Strikerail 16002 | -3/Protoforge | Found Faulty Cep. XC Strikerail 16010 | -3/Protoforge | Found Prototype Device 16011 | -3/Protoforge | Identified Cep. Recoil Nullifier 16022 | -3/Protoforge | X0-1V1 whisked you away to safety 16033 | -3/Protoforge | Build established: Generator-Construct 16129 | -3/Protoforge | X0-1V1 sent you into danger 16156 | -3/Protoforge | X0-1V1 turns hostiles against one another 16180 | -3/Protoforge | Spotted Executioner 16234 | -3/Protoforge | Core integrity restored by X0-1V1 (+235) 16252 | -3/Protoforge | Spotted V435-g 16252 | -3/Protoforge | Spotted V872-k 16299 | -3/Protoforge | Destroyed Executioner 16353 | -3/Protoforge | Destroyed V261-f 16394 | -3/Protoforge | X0-1V1 sent allied Scrapper (x2) 16408 | -3/Protoforge | Allies destroyed V872-k 16418 | -3/Protoforge | Destroyed V435-g 16527 | -3/Protoforge | Found Cep. Antimissile System 16535 | -3/Protoforge | X0-1V1 whisked you away to safety 16682 | -3/Protoforge | Build established: Generator-Mutant 16778 | -3/Protoforge | Found Cep. Energy Mantle 16781 | -3/Protoforge | Found Cep. RG22 Armor 16783 | -3/Protoforge | Found Cep. Core Shell 16796 | -3/Protoforge | Found Prototype Device 16797 | -3/Protoforge | Identified Exp. EM Disruption Field 16800 | -3/Protoforge | Found Cep. Core Shell 16803 | -3/Protoforge | Found Cep. Core Shell 16811 | -3/Protoforge | Found Cep. Core Shell 16812 | -3/Protoforge | Found Cep. Core Shell 16818 | -3/Protoforge | X0-1V1 mutated your Utility slot to Weapon slot 16860 | -3/Protoforge | X0-1V1 sent allied Executioner (x1) 16871 | -3/Protoforge | Incoming assault squad redirected 16950 | -3/Protoforge | X0-1V1 sent hostile Thug (x3) 16953 | -3/Protoforge | X0-1V1 sent allied Executioner (x1) 16960 | -3/Protoforge | Destroyed 15 combat bots 16978 | -3/Protoforge | Incoming assault squad redirected 16980 | -3/Protoforge | Incoming assault squad redirected 17020 | -3/Protoforge | Core integrity restored by X0-1V1 (+314) 17024 | -3/Protoforge | Spotted Decapitator 17024 | -3/Protoforge | Spotted Decapitator 17025 | -3/Protoforge | Destroyed Decapitator 17031 | -3/Protoforge | Destroyed Decapitator 17054 | -3/Protoforge | X0-1V1 mutated your Propulsion slot to Utility slot 17078 | -3/Protoforge | Build established: Generator-Tank 17227 | -3/Protoforge | Spotted Immortal 17227 | -3/Protoforge | Spotted Immortal 17257 | -3/Protoforge | Spotted V213-a 17266 | -3/Protoforge | Spotted V255-y 17267 | -3/Protoforge | Spotted V069-j 17267 | -3/Protoforge | Spotted V036-k 17276 | -3/Protoforge | Lost 3 parts (2u1w) 17277 | -3/Protoforge | Spotted V007-j 17297 | -3/Protoforge | Destroyed V007-j 17314 | -3/Protoforge | Destroyed V069-j 17316 | -3/Protoforge | Destroyed V255-y 17327 | -3/Protoforge | Found Prototype Energy Gun 17328 | -3/Protoforge | Identified Cep. Lightning Penetrator 17335 | -3/Protoforge | Found Prototype Slashing Weapon 17336 | -3/Protoforge | Identified Cep. Deflector Sword 17337 | -3/Protoforge | Destroyed 10 combat bots 17361 | -3/Protoforge | X0-1V1 turns hostiles against one another 17368 | -3/Protoforge | Destroyed V036-k 17382 | -3/Protoforge | Found Cep. XC Strikerail 17384 | -3/Protoforge | Found Faulty Cep. Lightning Penetrator 17387 | -3/Protoforge | Found Faulty Cep. Variable Chargecaster 17391 | -3/Protoforge | Destroyed Immortal 17402 | -3/Protoforge | X0-1V1 upgraded hostiles (x1) 17422 | -3/Protoforge | Incoming assault squad redirected 17431 | -3/Protoforge | Destroyed V213-a 17471 | -3/Protoforge | X0-1V1 upgraded hostiles (x3) 17489 | -3/Protoforge | Incoming assault squad redirected 17491 | -3/Protoforge | Incoming assault squad redirected 17521 | -3/Protoforge | Destroyed 8 combat bots 17551 | -3/Protoforge | Build established: Generator-Mutant 17563 | -3/Protoforge | Found Prototype Ballistic Cannon 17564 | -3/Protoforge | Identified Cep. Miniperforator 17566 | -3/Protoforge | Found Faulty Cep. Plasma Driver 17569 | -3/Protoforge | Found Faulty Cep. Plasma Driver 17571 | -3/Protoforge | Found Faulty Cep. Plasma Driver 17577 | -3/Protoforge | Found Faulty Cep. XC Strikerail 17578 | -3/Protoforge | Lost 13 parts (2p8u3w) 17580 | -3/Protoforge | Found Prototype Ballistic Cannon 17583 | -3/Protoforge | Found Prototype Ballistic Cannon 17584 | -3/Protoforge | Identified Cep. Heavy Railcannon 17697 | -3/Protoforge | Found Cep. Miniperforator 17699 | -3/Protoforge | Found Exp. Jetlance 17701 | -3/Protoforge | Found Faulty Cep. Lightning Penetrator 17824 | -3/Protoforge | Found Exp. Armor Integrity Analyzer 17859 | -3/Protoforge | Found Cep. Networked Targeting System 17863 | -3/Protoforge | Found Prototype Device 17864 | -3/Protoforge | Found Prototype Device 17864 | -3/Protoforge | Identified Cep. Countertargeting System 17867 | -3/Protoforge | Found Prototype Device 17867 | -3/Protoforge | Identified Cep. Weapon Articulator (x2) 17879 | -3/Protoforge | Found Exp. Kinecellerator 17883 | -3/Protoforge | Found Prototype Processor 17883 | -3/Protoforge | Identified Cep. Melee Reflex Suite 17887 | -3/Protoforge | Found Cep. Countertargeting System 17909 | -3/Protoforge | Found Mni. Quantum Capacitor 17980 | -3/Protoforge | Incoming assault squad redirected 17988 | -3/Protoforge | Incoming assault squad redirected 18035 | -3/Protoforge | X0-1V1 vaporized surrounding terrain (radius 19) 18037 | -3/Protoforge | Spotted AP7-3 18037 | -3/Protoforge | Spotted AP7-3 18044 | -3/Protoforge | Destroyed AP7-3 18047 | -3/Protoforge | Destroyed AP7-3 18052 | -3/Protoforge | X0-1V1 activates XOMVISION 18089 | -3/Protoforge | Found Cld. Directed Potential Cannon 18094 | -3/Protoforge | Found Cep. Cloak Mesh 18097 | -3/Protoforge | Found Prototype Device 18097 | -3/Protoforge | Identified Cep. Impact Drone Bay 18105 | -3/Protoforge | Found Faulty Cep. Cloak Mesh 18109 | -3/Protoforge | Found Cep. Cloak Mesh 18111 | -3/Protoforge | Found Faulty Cep. Thermoelectric Network 18116 | -3/Protoforge | Found Faulty Cep. Thermoelectric Network 18118 | -3/Protoforge | Found Cep. Impact Drone Bay 18125 | -3/Protoforge | Found Cep. Dimensional Manipulator 18142 | -3/Protoforge | Build established: Generator-Gunner 18208 | -3/Protoforge | Destroyed 7 combat bots 18228 | -3/Protoforge | Incoming assault squad redirected 18235 | -3/Protoforge | Incoming assault squad redirected 18235 | -3/Protoforge | X0-1V1 blocked Data Miner access to 0b10 dispatch routers 18253 | -3/Protoforge | Core integrity restored by X0-1V1 (+209) 18349 | -3/Protoforge | Found Cep. Nanofilaments [Conductive] 18349 | -3/Protoforge | Installed Cep. Nanofilaments [Conductive], 2 resistances modified: TH -15%, EM +25% 18387 | -3/Protoforge | Found Transdimensional Reconstructor 18460 | -3/Protoforge | Warped through subspace to slip node 18477 | -3/Protoforge | X0-1V1 downgraded hostiles (x2) 18506 | -3/Protoforge | Entered Research 18506 | -2/Research | Warlord forces began assault on 0b10 18506 | -2/Research | Evolved 2 slots: Propulsion x2 18562 | -2/Research | X0-1V1 sent you to a vault 18603 | -2/Research | High security lockdown imminent 18616 | -2/Research | Research machine network offline 18617 | -2/Research | Spotted B-90 Cyclops 18619 | -2/Research | Warped through subspace 18640 | -2/Research | Found Prototype Launcher 18641 | -2/Research | Identified Point Singularity Launcher 18680 | -2/Research | Discovered new exit (range 9) 18683 | -2/Research | High security lockdown engaged 18687 | -2/Research | X0-1V1 sent allied Cetus Guard (x1) 18746 | -2/Research | Found Ragnarok Missile Launcher 18831 | -2/Research | X0-1V1 whisked you away to safety 18921 | -2/Research | Found Prototype Device 18922 | -2/Research | Identified Exp. Thermal Shield 18928 | -2/Research | X0-1V1 activates XOMVISION 18967 | -2/Research | Build established: Generator-Tank 18974 | -2/Research | Spotted Striker 18978 | -2/Research | Destroyed Striker 19027 | -2/Research | Warlord destroyed during the assault 19169 | -2/Research | Spotted WE-DF5(L) 19217 | -2/Research | Destroyed WE-DF5(L) 19258 | -2/Research | Lost 6 parts (2p1n1u2w) 19300 | -2/Research | Crushed by falling debris 19315 | -2/Research | Borebot progress halted 19316 | -2/Research | Spotted Striker 19316 | -2/Research | Spotted Striker 19319 | -2/Research | Destroyed Striker 19321 | -2/Research | Destroyed Striker 19345 | -2/Research | System corruption reached 10% 19377 | -2/Research | Borebot progress halted 19441 | -2/Research | Found Prototype Launcher 19441 | -2/Research | Identified Tesla Bomb Launcher 19444 | -2/Research | Found Tesla Bomb Launcher 19524 | -2/Research | Spotted Striker 19530 | -2/Research | X0-1V1 whisked you away to safety 19744 | -2/Research | Spotted Striker 19754 | -2/Research | Spotted Striker 19757 | -2/Research | P-80 Master assimilated allied Warden 9a 19757 | -2/Research | Spotted Investigator 19765 | -2/Research | Destroyed Striker 19770 | -2/Research | Destroyed Investigator 19772 | -2/Research | Spotted Executioner 19774 | -2/Research | Destroyed Executioner 19776 | -2/Research | Destroyed Striker 19827 | -2/Research | Destroyed 23 combat bots 19832 | -2/Research | Lost 5 parts (2p2u1w) 19846 | -2/Research | Spotted Executioner 19853 | -2/Research | Warped through subspace 19853 | -2/Research | Spotted Striker 19858 | -2/Research | Core integrity fell below 50% 19858 | -2/Research | Spotted Executioner 19881 | -2/Research | Entered Testing 19897 | -2/Testing | Lost 7 parts (2n3u2w) 19901 | -2/Testing | Spotted Alpha 7 19904 | -2/Testing | Rewired M3-OL6(L) 19905 | -2/Testing | Rewired AG-B0I(L) 19918 | -2/Testing | X0-1V1 mutated your Weapon slot to Utility slot 19956 | -2/Testing | Found Prototype Protection 19957 | -2/Testing | Identified Med. Regenerative Plating 19982 | -2/Testing | High security lockdown imminent 20062 | -2/Testing | High security lockdown engaged 20071 | -2/Testing | Spotted Striker 20072 | -2/Testing | Spotted Striker 20128 | -2/Testing | X0-1V1 whisked you away to safety 20132 | -2/Testing | Found Prototype Energy Cannon 20132 | -2/Testing | Identified Imp. Potential Cannon 20180 | -2/Testing | Discovered new exit (range 11) 20181 | -2/Testing | Entered Access 20181 | -1/Access | Evolved 2 slots: Propulsion x1, Utility x1 20182 | -1/Access | High security lockdown imminent 20252 | -1/Access | X0-1V1 downgraded hostiles (x1) 20262 | -1/Access | High security lockdown engaged 20290 | -1/Access | Garrison activated, responded to threat 20309 | -1/Access | X0-1V1 enhanced Transport squad support 20312 | -1/Access | Energy Cycler disabled 20330 | -1/Access | Discovered new exit (range 5) 20332 | -1/Access | Identified Subatomic Replicator 20332 | -1/Access | Used Subatomic Replicator to replicate Cep. Impact Drone Bay 20440 | *** | Escaped! Last Messages --------------- 20435_ H-88 Terminator stasis bubble strength at 44. 20435_ Investigator stasis bubble strength at 20. 20435_ P-80 Master stasis bubble strength at 102. 20436_ H-88 Terminator stasis bubble strength at 18. 20436_ Investigator stasis bubble strength at 11. 20436_ P-80 Master stasis bubble strength at 95. 20437_ H-88 Terminator stasis bubble bursts. 20437_ Slug penetrates G-73 Enforcer. 20437_ Slug penetrates B-74 Champion. 20437_ Investigator stasis bubble strength at 2. 20437_ P-80 Master stasis bubble strength at 88. 20438_ Destroyed Hvy. Laser. 20438_ G-73 Enforcer system corrupted by crushing effect. 20438_ G-73 Enforcer knocked back. 20438_ Investigator stasis bubble bursts. 20438_ P-80 Master stasis bubble strength at 81. 20439_ G-73 Enforcer system terminally corrupted. 20439_ Slug penetrates Impact Drone. 20439_ P-80 Master stasis bubble strength at 74. [Achievement: Chaotic Teddy Bear] Map ----- +----------------------------------------------------+ | ?????????? ???????????????????????????????????? | | ?????????? ???????????????????????????????????? | | ?????????? ???????????????????????????????????? | | ?????????? ??????#????????????????????????????? | | ??????????# #?????g#????????????????????????????? | | ??????????# ###??#/#####????????????????????????? | | ??????????# p# ?? ????????????????????????? | | ??????????/t +??? ?????????????????????????? | | ??????????# %#?? "??????????????????????????? | | ??????????# #? ""???????????????????????????? | | ??????????#g #c """"??????????????????????????? | | ??????????#hm#h """??????????????????????????? | | ??????????#b=; """??????????????????????????? | | ??????????#mn; " ???????????????????????? | | ??????????#A # ?????????????????????? | | ??????????#% #?? ?????????????????????? | | ??????????# #????#########??????????????????????? | | ??????????# #???????????????????????????????????? | | ??????????# %#?????###???????????????????????????? | | ??????????# ####### ##########??????????????????? | | ??????????#m%"""T""" "??????????????????? | | ??????????# """ """ "??????????????????? | | ??????????# % "??????????????????? | | ??????????# "??????????????????? | | ??????????#R "" "??????????????????? | | ??????????# @" "??????????????????? | | ??????????# = "??????????????? ??? | | ??????????# "????????????# ?? | | ??????????# "????????????# ?? | | ??????????# s %s "????????????#% #? | | ??????????# %####### ##########????????????#|= #? | | ??????????# #?????###?????????????????????#%* #? | | ########### ##????????????????????????????#!! #? | | """" =# ###?????????###?######????????# #? | | ""R"" # #"######????# #????????# #? | | "" "" + # ???#?# =#????????# #? | | [ # # ?? #?# #????????# ## | | # # " #?# " #????????# | | #%%# """ #?# """ #????????# | | #% # """ #?# """ #????????# | | #" # " ???? " #????????# | | # # ???????? #????????# | | ########### # ?????????? #????????# | | % % ###+#############+##+########## | | % | | % | | /###############+######/########+##########" | | ???????? ???? ???? ???????## " % | | ?????? ???? ???# =???????####% | | #??? ??# ??# ?????????#" | +----------------------------------------------------+ Best States ------------- Heat Dissipation 217 Coolant Potential 120 Energy Generation 130 Energy Capacity 2530 Matter Stores 1000 Matter Capacity 1000 Sight Range 21 Robot Scan Range 16 Terrain Scan Density 10 Jamming Range 16 Cloak Strength 9 Power Amplification 20 Additional Mass Support 30 EM Shielding 4 Corruption Block 19 Armor Coverage 600 Resistance: KI 100 Resistance: TH 51 Resistance: EX 75 Resistance: EM 75 Core Shielding 90 Weapon Shielding 90 Point Defense Rating 240 Projectile Deflection 15 Weapon Cycling 25 Phase Shifting 15 Evasion (%) 85 Targeting Accuracy 30 Launcher Accuracy 40 Target Analysis 8 Armor Integrity Analysis 50 Recoil Reduction 8 Offensive Hacking 34 Authchip Count 10 Item Schematics ----------------- Combat Drone Bay | -6/Data Miner | Free Lgt. Regenerative Plating | -6/Data Miner | Free Cld. Nuclear Pulse Thruster | -6/Data Miner | Free Prc. Matter Filter | -6/Data Miner | Free Hvy. Proton Cannon | -6/Data Miner | Free Centrium Wheel | -6/Data Miner | Free Adv. Thermal Shield | -6/Data Miner | Free Railgun | -6/Data Miner | Free Exp. Heat Sink | -5/Zhirov | Free Assault Drone Bay | -5/Zhirov | Free Exp. Optical Array | -5/Zhirov | Free Imp. Arc Thrower | -5/Zhirov | Free Lgt. Quantum Reactor | -4/Factory | Hacked Adv. EM Shield | -3/Quarantine | Archive Hds. Centrium Wheel | -3/Quarantine | Archive Enh. Multireflex Exoskeleton | -3/Quarantine | Archive Hellfire Missile Launcher | -3/Quarantine | Archive Imp. Particle Accelerator | -3/Protoforge | Archive Imp. Matter Neutralizer | -3/Protoforge | Archive Hds. Centrium Heavy Treads | -2/Testing | Archive Exp. Energy Well | -2/Testing | Archive Coolant Network | -2/Testing | Archive Com. Linear Accelerator | -2/Testing | Archive Robot Schematics ------------------ K-01 Serf | -8/Storage | Hacked R-10 Processor | -6/Data Miner | Free G-50 Soldier | -6/Data Miner | Free S-27 Virus | -6/Data Miner | Free M-22 Extractor | -6/Data Miner | Free B-74 Champion | -3/Quarantine | Archive R-06 Scavenger | -3/Protoforge | Archive C-55 Analyst | -2/Testing | Archive A-27 Freighter | -2/Testing | Archive Fabricated ------------ Nothing Repaired ---------- Nothing Studied --------- Imp. Plasma Cutter | -5/Factory | Hacked Alien Tech Used ----------------- Integrated Reactor Core Expander Dimensional Node Initializer High-powered Transdimensional Reconstructor Transdimensional Reconstructor Core Cannon Concept Nanofilaments [Conductive] Subatomic Replicator Achievements -------------- Chaotic Teddy Bear Challenges ------------ None Game ------ Seed InterceptLargeGun Manual? 0 Play Time 04:21:15 Cumulative 948.7 hours Start 2026.06.23 @ 18:41:36 End 2026.06.25 @ 06:49:07 Sessions 11 Manual Loads 0 Difficulty Rogue Special Mode None Game No. 1086 Rogue 1086 Adventurer 0 Explorer 0 Win Type 0 Total 41 Types 20/1/8/3/2/1/3/2/1/0 Lore% 98 Gallery% 96 Achievement% 92 Wizard Run 0 Options --------- Layout 0 ASCII 0 Keyboard 0 Movement Mouse Keybinds 0 Fullscreen 1 Font 24/Terminus Map View 76x50 Zoom Use 0% Tactical HUD 1 Map Filters NONE Filters NONE Steam 1 RUN: 9f728210-d27c-44fb-8ecd-dbdf5a4fdf3d